Workbook

Sheet 1. Info
AB1: Algoma Power Inc.
AB2: Atikokan Hydro Inc.
AB3: Attawapiskat Power Corporation
AB4: Bluewater Power Distribution Corp.
AB5: Brant County Power
AB6: Brantford Power Inc.
AB7: Burlington Hydro Inc.
AB8: Cambridge and North Dumfries Hydro
AB9: Canadian Niagara Power Inc. – Eastern Ontario Power/Fort Erie/Port Colborne
AB10: Centre Wellington Hydro Ltd.
AB11: Chapleau Public Utilities Corporation
AB12: COLLUS Power Corp.
AB13: Cooperative Hydro Embrun Inc.
AB14: E.L.K. Energy Inc.
C15: Utility Name | D15: Erie Thames Powerlines Corp. | AB15: Enersource Hydro Mississauga Inc.
AB16: Entegrus Powerlines Inc.
C17: Assigned EB Number | D17: EB-2013-0018 | AB17: ENWIN Utilities Ltd.
AB18: Erie Thames Powerlines Corp.
C19: Name and Title | D19: Graig Pettit Manager of Finance and Regulatory Affairs | AB19: Espanola Regional Hydro Distribution Corporation
AB20: Essex Powerlines Corporation
C21: Phone Number | D21: 519-485-1820 ext 254 | AB21: Festival Hydro Inc.
AB22: Fort Albany Power Corporation
C23: Email Address | D23: gpettit@eriethamespower.com | AB23: Fort Frances Power Corporation
AB24: Greater Sudbury Hydro Inc.
C25: Date | D25: 2013-03-15 | AB25: Grimsby Power Inc.
AB26: Guelph Hydro Electric Systems Inc.
C27: Last COS Re-based Year | D27: 2012 | AB27: Haldimand County Hydro Inc.
AB28: Halton Hills Hydro Inc.
AB29: Hearst Power Distribution Co. Ltd.
A30: Note: Drop-down lists are shaded blue; Input cells are shaded green.
AB32: Horizon Utilities Corporation
AB33: Hydro 2000 Inc.
AB34: Hydro Hawkesbury Inc.
AB35: Hydro One Brampton Networks Inc.
AB36: Hydro One Networks Inc.
AB37: Hydro One Remote Communities Inc.
AB38: Hydro Ottawa Limited
AB39: Innisfil Hydro Dist. Systems Limited
AB40: Kashechewan Power Corporation
AB41: Kenora Hydro Electric Corporation Ltd.
AB42: Kingston Hydro Corporation
AB43: Kitchener-Wilmot Hydro Inc.
AB44: Lakefront Utilities Inc.
AB45: Lakeland Power Distribution Ltd.
AB46: London Hydro Inc.
AB47: Midland Power Utility Corporation
AB48: Milton Hydro Distribution Inc.
AB49: Newmarket – Tay Power Distribution Ltd.
AB50: Niagara Peninsula Energy Inc.
AB51: Niagara-on-the-Lake Hydro Inc.
AB52: Norfolk Power Distribution Ltd.
AB53: North Bay Hydro Distribution Limited
AB54: Northern Ontario Wires Inc.
AB55: Oakville Hydro Distribution Inc.
AB56: Orangeville Hydro Limited
AB57: Orillia Power Distribution Corp.
AB58: Oshawa PUC Networks Inc.
AB59: Ottawa River Power Corporation
AB60: Parry Sound Power Corporation
AB61: Peterborough Distribution Inc.
AB62: PowerStream Inc.
AB63: PUC Distribution Inc.
AB64: Renfrew Hydro Inc.
AB65: Rideau St. Lawrence Distribution Inc.
AB66: St. Thomas Energy Inc.
AB67: Sioux Lookout Hydro Inc.
AB68: Thunder Bay Hydro Electricity Distribution
AB69: Tillsonburg Hydro Inc.
AB70: Toronto Hydro-Electric System Limited
AB71: Veridian Connections Inc.
AB72: Wasaga Distribution Inc.
AB73: Waterloo North Hydro Inc.
AB74: Welland Hydro Electric System Corp.
AB75: Wellington North Power Inc.
AB76: West Coast Huron Energy Inc.
AB77: Westario Power Inc.
AB78: Whitby Hydro Electric Corporation
AB79: Woodstock Hydro Services Inc.

Sheet 2. Table of Contents
D20: 1. Info | I20: 7. Current Wholesale
D22: 2. Table of Contents | I22: 8. Forecast Wholesale
D24: 3. Rate Classes | I24: 9. Adj Network to Current WS
D26: 4. RRR Data | I26: 10. Adj Conn. to Current WS
D28: 5. UTRs and Sub-Transmission | I28: 11. Adj Network to Forecast WS
D30: 6. Historical Wholesale | I30: 12. Adj Conn. to Forecast WS
I32: 13. Final 2013 RTS Rates

Sheet 3. Rate Classes
C13: 1. Select the appropriate rate classes that appear on your most recent Board-Approved Tariff of Rates and Charges. 2. Enter the RTS Network and Connection Rate as it appears on the Tariff of Rates and Charges
C22: Rate Class | H22: Unit | J22: RTSR-Network | M22: RTSR-Connection
C24: Residential | H24: kWh | J24: 0.0059 | M24: 0.004 | Q24: =IF(OR(ISBLANK(C24), ISERROR(FIND("Choose", C24))=FALSE), 0, 1) -> 1 | R24: ="C" & ROW(C24) -> C24 | S24: =IF(OR(C24="General Service Intermediate Rate Class 1,000 To 4,999 kW (formerly General Service > 50 kW Customers)", C24="General Service Intermediate Rate Class 1,000 To 4,999 kW (formerly Large Use Customers)"), "x", "") ->  | AB24: Choose Rate Class
C25: General Service Less Than 50 kW | H25: kWh | J25: 0.0054 | M25: 0.0036 | Q25: 1 | R25: C25 | S25: =IF(OR(C25="General Service Intermediate Rate Class 1,000 To 4,999 kW (formerly General Service > 50 kW Customers)", C25="General Service Intermediate Rate Class 1,000 To 4,999 kW (formerly Large Use Customers)"), "x", "") ->  | AB25: Residential
C26: General Service 50 to 999 kW | H26: kW | J26: 2.4575 | M26: 1.2953 | Q26: 1 | R26: C26 | AB26: Residential Regular
C27: General Service 1,000 to 4,999 kW | H27: kW | J27: 2.6692 | M27: 1.3929 | Q27: 1 | R27: C27 | AB27: Residential Urban
C28: Large Use | H28: kW | J28: 2.9591 | M28: 1.58 | Q28: 1 | R28: C28 | AB28: Residential Urban Year-Round
C29: Unmetered Scattered Load | H29: kWh | J29: 0.0054 | M29: 0.0036 | Q29: 1 | R29: C29 | AB29: Residential Suburban
C30: Sentinel Lighting | H30: kW | J30: 1.8979 | M30: 1.0003 | Q30: 1 | R30: C30 | AB30: Residential Suburban Seasonal
C31: Street Lighting | H31: kW | J31: 1.8979 | M31: 1.6533 | Q31: 1 | R31: C31 | AB31: Residential Suburban Year Round
C32: Embedded Distributor | H32: kW | J32: 3.5709 | M32: 1.8369 | Q32: 1 | R32: C32 | AB32: Residential - Time of Use
C33: Choose Rate Class | Q33: 0 | R33: C33 | AB33: Residential - Hensall
C34: Choose Rate Class | Q34: 0 | R34: C34 | AB34: Residential – High Density [R1]
C35: Choose Rate Class | Q35: 0 | R35: C35 | AB35: Residential – Normal Density [R2]
C36: Choose Rate Class | Q36: 0 | R36: C36 | AB36: Seasonal Residential – High Density [R3]
C37: Choose Rate Class | Q37: 0 | R37: C37 | AB37: Seasonal Residential – Normal Density [R4]
C38: Choose Rate Class | Q38: 0 | R38: C38 | AB38: Residential – Urban [UR]
C39: Choose Rate Class | Q39: 0 | R39: C39
C40: Choose Rate Class | Q40: 0 | R40: C40 | AB40: General Service Less Than 50 kW
C41: Choose Rate Class | Q41: 0 | R41: C41 | AB41: General Service Less Than 50 kW – Single Phase energy-billed [G1]
C42: Choose Rate Class | Q42: 0 | R42: C42 | AB42: General Service Less Than 50 kW – Three Phase energy-billed [G3]
C43: Choose Rate Class | Q43: 0 | R43: C43 | AB43: General Service Less Than 50 kW – Transmission Class energy-billed [T]
C44: Choose Rate Class | Q44: 0 | R44: C44 | AB44: General Service Less Than 50 kW – Urban energy-billed [UG]
C45: Choose Rate Class | Q45: 0 | R45: C45 | AB45: Westport Sewage Treatment Plant
S46: =COUNTIF(S24:S45, "x") -> 0 | AB46: Small Commercial and USL - per meter
AB47: Small Commercial and USL - per connection
AB48: Farms – Single Phase energy-billed [F1]
AB50: General Service 50 to 499 kW
AB51: General Service 50 to 699 kW
AB52: General Service 50 to 999 kW
AB53: General Service 50 to 999 kW - Interval Metered
AB54: General Service 50 to 1,000 kW
AB55: General Service 50 to 1,000 kW - Interval Meters
AB56: General Service 50 to 1,000 kW - Non Interval Meters
AB57: General Service 50 to 1,499 kW
AB58: General Service 50 to 1,499 kW - Interval Metered
AB59: General Service 50 to 2,499 kW
AB60: General Service 50 to 2,999 kW
AB61: General Service 50 to 2,999 kW - Time of Use
AB62: General Service 50 to 4,999 kW
AB63: General Service 50 to 4,999 kW – Interval Metered
AB64: General Service 50 to 4,999 kW - Time of Use
AB65: General Service 50 to 4,999 kW (CoGeneration)
AB66: General Service 50 to 4,999 kW (formerly Time of Use)
AB67: General Service 500 to 4,999 kW
AB68: General Service 700 to 4,999 kW
AB69: General Service 1,000 to 2,999 kW
AB70: General Service 1,000 to 4,999 kW
AB71: General Service 1,000 to 4,999 kW - Interval Meters
AB72: General Service 1,000 To 4,999 kW (co-generation)
AB73: General Service Greater Than 1,000 kW
AB74: General Service Intermediate Rate Class 1,000 To 4,999 kW (formerly Large Use Customers)
AB75: General Service Intermediate Rate Class 1,000 To 4,999 kW (formerly General Service > 50 kW Customers)
AB76: General Service 1,500 to 4,999 kW
AB77: General Service Equal To Or Greater Than 1,500 kW
AB78: General Service Equal To Or Greater Than 1,500 kW - Interval Metered
AB79: General Service Intermediate 1,000 To 4,999 kW
AB80: General Service 2,500 to 4,999 kW
AB81: General Service 3,000 to 4,999 kW
AB82: General Service 3,000 to 4,999 kW - Interval Metered
AB83: General Service 3,000 to 4,999 kW - Intermediate Use
AB84: General Service 3,000 to 4,999 kW - Time of Use
AB85: Intermediate With Self Generation
AB86: General Service - Commercial
AB87: General Service - Institutional
AB88: Farms – Three Phase energy-billed [F3]
AB90: Large Use
AB91: Large Use - Regular
AB92: Large Use > 5000 kW
AB93: Large Use - 3TS
AB94: Large Use - Ford Annex
AB96: Unmetered Scattered Load
AB98: Sentinel Lighting
AB100: Street Lighting
AB102: Embedded Distributor
AB103: Low Voltage Wheeling Charge Rate
AB105: Stand-By
AB106: Standby Power
AB107: Standby Power – INTERIM APPROVAL
AB108: Standby Power - APPROVED ON AN INTERIM BASIS
AB109: Standby - General Service 50 - 1,000 kW
AB110: Standby Power General Service 50 to 1,499 kW
AB111: Standby - General Service 1,000 - 5,000 kW
AB112: Standby Power General Service 1,500 to 4,999 kW
AB113: Standby - Large Use
AB114: Standby Power General Service Large Use
AB115: Standby Distribution Service

Sheet 4. RRR Data
B13: In the green shaded cells, enter the most recent reported RRR billing determinants. Please ensure that billing determinants are non-loss adjusted.
B24: Rate Class | D24: Unit | F24: Non-Loss Adjusted Metered kWh | G24: Non-Loss Adjusted Metered kW | H24: Applicable Loss Factor | J24: Load Factor | L24: Loss Adjusted Billed kWh | M24: Billed kW
B27: =IF('3. Rate Classes'!Q24=1,'3. Rate Classes'!C24, 0) -> Residential | D27: =IF(OR(VLOOKUP($B27, '3. Rate Classes'!$C$24:$H$45,6,0)=0, ISERROR(VLOOKUP($B27, '3. Rate Classes'!$C$24:$H$45,6,0))), "", VLOOKUP($B27, '3. Rate Classes'!$C$24:$H$45,6,0)) -> kWh | F27: 141607881 | H27: 1.0427 | J27: =IF(ISERROR(F27/(G27*30.4*24)), "", IF(D27="kW", F27/(G27*30.4*24), "")) ->  | L27: =IF(OR(H27=0, OR(ISBLANK(H27), TRIM(H27)="")), F27, F27*H27) -> 147654537.5 | M27: =IF(OR(H27=0, OR(ISBLANK(H27), TRIM(H27)="")), G27, G27) -> 0
B28: =IF('3. Rate Classes'!Q25=1,'3. Rate Classes'!C25, 0) -> General Service Less Than 50 kW | D28: =IF(OR(VLOOKUP($B28, '3. Rate Classes'!$C$24:$H$45,6,0)=0, ISERROR(VLOOKUP($B28, '3. Rate Classes'!$C$24:$H$45,6,0))), "", VLOOKUP($B28, '3. Rate Classes'!$C$24:$H$45,6,0)) -> kWh | F28: 48940695 | H28: 1.0427 | L28: =IF(OR(H28=0, OR(ISBLANK(H28), TRIM(H28)="")), F28, F28*H28) -> 51030462.68 | M28: =IF(OR(H28=0, OR(ISBLANK(H28), TRIM(H28)="")), G28, G28) -> 0
B29: =IF('3. Rate Classes'!Q26=1,'3. Rate Classes'!C26, 0) -> General Service 50 to 999 kW | D29: =IF(OR(VLOOKUP($B29, '3. Rate Classes'!$C$24:$H$45,6,0)=0, ISERROR(VLOOKUP($B29, '3. Rate Classes'!$C$24:$H$45,6,0))), "", VLOOKUP($B29, '3. Rate Classes'!$C$24:$H$45,6,0)) -> kW | F29: 76414560 | G29: 223584 | J29: 0.4684363301 | L29: 76414560 | M29: 223584
B30: =IF('3. Rate Classes'!Q27=1,'3. Rate Classes'!C27, 0) -> General Service 1,000 to 4,999 kW | D30: =IF(OR(VLOOKUP($B30, '3. Rate Classes'!$C$24:$H$45,6,0)=0, ISERROR(VLOOKUP($B30, '3. Rate Classes'!$C$24:$H$45,6,0))), "", VLOOKUP($B30, '3. Rate Classes'!$C$24:$H$45,6,0)) -> kW | F30: 99303972 | G30: =138108+30440 -> 168548 | J30: 0.8075291179 | L30: 99303972 | M30: 168548
B31: =IF('3. Rate Classes'!Q28=1,'3. Rate Classes'!C28, 0) -> Large Use | D31: =IF(OR(VLOOKUP($B31, '3. Rate Classes'!$C$24:$H$45,6,0)=0, ISERROR(VLOOKUP($B31, '3. Rate Classes'!$C$24:$H$45,6,0))), "", VLOOKUP($B31, '3. Rate Classes'!$C$24:$H$45,6,0)) -> kW | F31: 95335410 | G31: 159576 | J31: 0.8188452586 | L31: 95335410 | M31: 159576
B32: =IF('3. Rate Classes'!Q29=1,'3. Rate Classes'!C29, 0) -> Unmetered Scattered Load | D32: =IF(OR(VLOOKUP($B32, '3. Rate Classes'!$C$24:$H$45,6,0)=0, ISERROR(VLOOKUP($B32, '3. Rate Classes'!$C$24:$H$45,6,0))), "", VLOOKUP($B32, '3. Rate Classes'!$C$24:$H$45,6,0)) -> kWh | F32: 608161 | H32: 1.0427 | L32: 634129.4747 | M32: 0
B33: =IF('3. Rate Classes'!Q30=1,'3. Rate Classes'!C30, 0) -> Sentinel Lighting | D33: =IF(OR(VLOOKUP($B33, '3. Rate Classes'!$C$24:$H$45,6,0)=0, ISERROR(VLOOKUP($B33, '3. Rate Classes'!$C$24:$H$45,6,0))), "", VLOOKUP($B33, '3. Rate Classes'!$C$24:$H$45,6,0)) -> kW | F33: 54410 | G33: 18 | J33: =IF(ISERROR(F33/(G33*30.4*24)), "", IF(D33="kW", F33/(G33*30.4*24), "")) -> 4.143061647 | L33: 54410 | M33: 18
B34: =IF('3. Rate Classes'!Q31=1,'3. Rate Classes'!C31, 0) -> Street Lighting | D34: =IF(OR(VLOOKUP($B34, '3. Rate Classes'!$C$24:$H$45,6,0)=0, ISERROR(VLOOKUP($B34, '3. Rate Classes'!$C$24:$H$45,6,0))), "", VLOOKUP($B34, '3. Rate Classes'!$C$24:$H$45,6,0)) -> kW | F34: 4189868 | G34: 920 | J34: 6.242056398 | L34: 4189868 | M34: 920
B35: =IF('3. Rate Classes'!Q32=1,'3. Rate Classes'!C32, 0) -> Embedded Distributor | D35: =IF(OR(VLOOKUP($B35, '3. Rate Classes'!$C$24:$H$45,6,0)=0, ISERROR(VLOOKUP($B35, '3. Rate Classes'!$C$24:$H$45,6,0))), "", VLOOKUP($B35, '3. Rate Classes'!$C$24:$H$45,6,0)) -> kW | F35: 17400000 | G35: 23837 | J35: 1.000490171 | L35: 17400000 | M35: 23837
B36: =IF('3. Rate Classes'!Q33=1,'3. Rate Classes'!C33, 0) -> 0 | D36: =IF(OR(VLOOKUP($B36, '3. Rate Classes'!$C$24:$H$45,6,0)=0, ISERROR(VLOOKUP($B36, '3. Rate Classes'!$C$24:$H$45,6,0))), "", VLOOKUP($B36, '3. Rate Classes'!$C$24:$H$45,6,0)) ->  | L36: 0 | M36: 0
B37: =IF('3. Rate Classes'!Q34=1,'3. Rate Classes'!C34, 0) -> 0 | D37: =IF(OR(VLOOKUP($B37, '3. Rate Classes'!$C$24:$H$45,6,0)=0, ISERROR(VLOOKUP($B37, '3. Rate Classes'!$C$24:$H$45,6,0))), "", VLOOKUP($B37, '3. Rate Classes'!$C$24:$H$45,6,0)) ->  | L37: 0 | M37: 0
B38: =IF('3. Rate Classes'!Q35=1,'3. Rate Classes'!C35, 0) -> 0 | D38: =IF(OR(VLOOKUP($B38, '3. Rate Classes'!$C$24:$H$45,6,0)=0, ISERROR(VLOOKUP($B38, '3. Rate Classes'!$C$24:$H$45,6,0))), "", VLOOKUP($B38, '3. Rate Classes'!$C$24:$H$45,6,0)) ->  | L38: 0 | M38: 0
B39: =IF('3. Rate Classes'!Q36=1,'3. Rate Classes'!C36, 0) -> 0 | D39: =IF(OR(VLOOKUP($B39, '3. Rate Classes'!$C$24:$H$45,6,0)=0, ISERROR(VLOOKUP($B39, '3. Rate Classes'!$C$24:$H$45,6,0))), "", VLOOKUP($B39, '3. Rate Classes'!$C$24:$H$45,6,0)) ->  | L39: 0 | M39: 0
B40: =IF('3. Rate Classes'!Q37=1,'3. Rate Classes'!C37, 0) -> 0 | D40: =IF(OR(VLOOKUP($B40, '3. Rate Classes'!$C$24:$H$45,6,0)=0, ISERROR(VLOOKUP($B40, '3. Rate Classes'!$C$24:$H$45,6,0))), "", VLOOKUP($B40, '3. Rate Classes'!$C$24:$H$45,6,0)) ->  | L40: 0 | M40: 0
B41: =IF('3. Rate Classes'!Q38=1,'3. Rate Classes'!C38, 0) -> 0 | D41: =IF(OR(VLOOKUP($B41, '3. Rate Classes'!$C$24:$H$45,6,0)=0, ISERROR(VLOOKUP($B41, '3. Rate Classes'!$C$24:$H$45,6,0))), "", VLOOKUP($B41, '3. Rate Classes'!$C$24:$H$45,6,0)) ->  | L41: 0 | M41: 0
B42: =IF('3. Rate Classes'!Q39=1,'3. Rate Classes'!C39, 0) -> 0 | D42: =IF(OR(VLOOKUP($B42, '3. Rate Classes'!$C$24:$H$45,6,0)=0, ISERROR(VLOOKUP($B42, '3. Rate Classes'!$C$24:$H$45,6,0))), "", VLOOKUP($B42, '3. Rate Classes'!$C$24:$H$45,6,0)) ->  | L42: 0 | M42: 0
B43: =IF('3. Rate Classes'!Q40=1,'3. Rate Classes'!C40, 0) -> 0 | D43: =IF(OR(VLOOKUP($B43, '3. Rate Classes'!$C$24:$H$45,6,0)=0, ISERROR(VLOOKUP($B43, '3. Rate Classes'!$C$24:$H$45,6,0))), "", VLOOKUP($B43, '3. Rate Classes'!$C$24:$H$45,6,0)) ->  | L43: 0 | M43: 0
B44: =IF('3. Rate Classes'!Q41=1,'3. Rate Classes'!C41, 0) -> 0 | D44: =IF(OR(VLOOKUP($B44, '3. Rate Classes'!$C$24:$H$45,6,0)=0, ISERROR(VLOOKUP($B44, '3. Rate Classes'!$C$24:$H$45,6,0))), "", VLOOKUP($B44, '3. Rate Classes'!$C$24:$H$45,6,0)) ->  | L44: 0 | M44: 0
B45: =IF('3. Rate Classes'!Q42=1,'3. Rate Classes'!C42, 0) -> 0 | D45: =IF(OR(VLOOKUP($B45, '3. Rate Classes'!$C$24:$H$45,6,0)=0, ISERROR(VLOOKUP($B45, '3. Rate Classes'!$C$24:$H$45,6,0))), "", VLOOKUP($B45, '3. Rate Classes'!$C$24:$H$45,6,0)) ->  | L45: 0 | M45: 0
B46: =IF('3. Rate Classes'!Q43=1,'3. Rate Classes'!C43, 0) -> 0 | D46: =IF(OR(VLOOKUP($B46, '3. Rate Classes'!$C$24:$H$45,6,0)=0, ISERROR(VLOOKUP($B46, '3. Rate Classes'!$C$24:$H$45,6,0))), "", VLOOKUP($B46, '3. Rate Classes'!$C$24:$H$45,6,0)) ->  | L46: 0 | M46: 0
B47: =IF('3. Rate Classes'!Q44=1,'3. Rate Classes'!C44, 0) -> 0 | D47: =IF(OR(VLOOKUP($B47, '3. Rate Classes'!$C$24:$H$45,6,0)=0, ISERROR(VLOOKUP($B47, '3. Rate Classes'!$C$24:$H$45,6,0))), "", VLOOKUP($B47, '3. Rate Classes'!$C$24:$H$45,6,0)) ->  | L47: 0 | M47: 0
B48: =IF('3. Rate Classes'!Q45=1,'3. Rate Classes'!C45, 0) -> 0 | D48: =IF(OR(VLOOKUP($B48, '3. Rate Classes'!$C$24:$H$45,6,0)=0, ISERROR(VLOOKUP($B48, '3. Rate Classes'!$C$24:$H$45,6,0))), "", VLOOKUP($B48, '3. Rate Classes'!$C$24:$H$45,6,0)) ->  | L48: 0 | M48: 0

Sheet 5. UTRs and Sub-Transmission
B18: Uniform Transmission Rates | C18: Unit | E18: Effective January 1, 2011 | G18: Effective January 1, 2012 | I18: Effective January 1, 2013
B20: Rate Description | E20: Rate | G20: Rate | I20: Rate
B22: Network Service Rate | C22: kW | E22: 3.22 | G22: 3.57 | I22: 3.63
B24: Line Connection Service Rate | C24: kW | E24: 0.79 | G24: 0.8 | I24: 0.75
B26: Transformation Connection Service Rate | C26: kW | E26: 1.77 | G26: 1.86 | I26: 1.85
B29: Hydro One Sub-Transmission Rates | C29: Unit | E29: Effective January 1, 2011 | G29: Effective January 1, 2012 | I29: Effective January 1, 2013
B33: Rate Description | E33: Rate | G33: Rate | I33: Rate
B35: Network Service Rate | C35: kW | E35: 2.65 | G35: 2.65 | I35: 2.65
B37: Line Connection Service Rate | C37: kW | E37: 0.64 | G37: 0.64 | I37: 0.64
B39: Transformation Connection Service Rate | C39: kW | E39: 1.5 | G39: 1.5 | I39: 1.5
B41: Both Line and Transformation Connection Service Rate | C41: kW | E41: =E39+E37 -> 2.14 | G41: =G39+G37 -> 2.14 | I41: =I39+I37 -> 2.14
B45: Hydro One Sub-Transmission Rate Rider 6A | C45: Unit | E45: Effective January 1, 2011 | G45: Effective January 1, 2012 | I45: Effective January 1, 2013
B47: Rate Description | E47: Rate | G47: Rate | I47: Rate
B49: RSVA Transmission network – 4714 – which affects 1584 | C49: kW | E49: 0.047 | G49: 0 | I49: 0
B51: RSVA Transmission connection – 4716 – which affects 1586 | C51: kW | E51: -0.025 | G51: 0 | I51: 0
B53: RSVA LV – 4750 – which affects 1550 | C53: kW | E53: 0.058 | G53: 0 | I53: 0
B55: RARA 1 – 2252 – which affects 1590 | C55: kW | E55: -0.075 | G55: 0 | I55: 0
B57: Hydro One Sub-Transmission Rate Rider 6A | C57: kW | E57: =SUM(E49:E55) -> 0.005 | G57: =SUM(G49:G55) -> 0 | I57: =SUM(I49:I55) -> 0

Sheet 6. Historical Wholesale
B21: IESO | D21: Network | H21: Line Connection | L21: Transformation Connection | P21: Total Line
B22: Month | D22: Units Billed | E22: Rate | F22: Amount | H22: Units Billed | I22: Rate | J22: Amount | L22: Units Billed | M22: Rate | N22: Amount | P22: Amount
B24: January | D24: 8840 | E24: =IF(D24<>0,F24/D24,0) -> 3.22 | F24: 28464.8 | H24: 9347 | I24: =IF(H24<>0,J24/H24,0) -> 0.79 | J24: 7384.13 | L24: 9347 | M24: =IF(L24<>0,N24/L24,0) -> 1.77 | N24: 16544.19 | P24: =J24+N24 -> 23928.32
B25: February | D25: 8636 | E25: 3.22 | F25: 27807.92 | H25: 9063 | I25: 0.79 | J25: 7159.77 | L25: 9063 | M25: 1.77 | N25: 16041.51 | P25: 23201.28
B26: March | D26: 14372 | E26: 3.22 | F26: 46277.84 | H26: 16908 | I26: 0.79 | J26: 13357.32 | L26: 16908 | M26: 1.77 | N26: 29927.16 | P26: 43284.48
B27: April | D27: 7554 | E27: 3.22 | F27: 24323.88 | H27: 8005 | I27: 0.79 | J27: 6323.95 | L27: 8005 | M27: 1.77 | N27: 14168.85 | P27: 20492.8
B28: May | D28: 9045 | E28: 3.22 | F28: 29124.9 | H28: 9315 | I28: 0.79 | J28: 7358.85 | L28: 9315 | M28: 1.769940955 | N28: 16487 | P28: 23845.85
B29: June | D29: 9532 | E29: 3.22 | F29: 30693.04 | H29: 9532 | I29: 0.79 | J29: 7530.28 | L29: 9532 | M29: 1.77 | N29: 16871.64 | P29: 24401.92
B30: July | D30: 10815 | E30: 3.22 | F30: 34824.3 | H30: 10815 | I30: 0.79 | J30: 8543.85 | L30: 10815 | M30: 1.77 | N30: 19142.55 | P30: 27686.4
B31: August | D31: 9230 | E31: 3.22 | F31: 29720.6 | H31: 9608 | I31: 0.79 | J31: 7590.32 | L31: 9608 | M31: 1.77 | N31: 17006.16 | P31: 24596.48
B32: September | D32: 9685 | E32: 3.22 | F32: 31185.7 | H32: 9886 | I32: 0.79 | J32: 7809.94 | L32: 9886 | M32: 1.77 | N32: 17498.22 | P32: 25308.16
B33: October | D33: 7435 | E33: 3.22 | F33: 23940.7 | H33: 7893 | I33: 0.79 | J33: 6235.47 | L33: 7893 | M33: 1.77 | N33: 13970.61 | P33: 20206.08
B34: November | D34: 8259 | E34: 3.22 | F34: 26593.98 | H34: 8709 | I34: 0.79 | J34: 6880.11 | L34: 8709 | M34: 1.77 | N34: 15414.93 | P34: 22295.04
B35: December | D35: 8369 | E35: 3.22 | F35: 26948.18 | H35: 8490 | I35: 0.7890694935 | J35: 6699.2 | L35: 8480 | M35: 1.77 | N35: 15009.6 | P35: 21708.8
B37: Total | D37: =SUM(D24:D35) -> 111772 | E37: =IF(D37<>0,F37/D37,0) -> 3.22 | F37: =SUM(F24:F35) -> 359905.84 | H37: =SUM(H24:H35) -> 117571 | I37: =IF(H37<>0,J37/H37,0) -> 0.7899328066 | J37: =SUM(J24:J35) -> 92873.19 | L37: =SUM(L24:L35) -> 117561 | M37: =IF(L37<>0,N37/L37,0) -> 1.769995322 | N37: =SUM(N24:N35) -> 208082.42 | P37: =SUM(P24:P35) -> 300955.61
B39: Hydro One | D39: Network | H39: Line Connection | L39: Transformation Connection | P39: Total Line
B41: Month | D41: Units Billed | E41: Rate | F41: Amount | H41: Units Billed | I41: Rate | J41: Amount | L41: Units Billed | M41: Rate | N41: Amount | P41: Amount
B43: January | D43: 58000 | E43: =IF(D43<>0,F43/D43,0) -> 2.644882759 | F43: 153403.2 | H43: 58000 | I43: =IF(H43<>0,J43/H43,0) -> 2.14 | J43: 124120 | L43: 58000 | M43: =IF(L43<>0,N43/L43,0) -> 0 | P43: =J43+N43 -> 124120
B44: February | D44: 57077 | E44: 2.649907143 | F44: 151248.75 | H44: 57077 | I44: 2.14 | J44: 122144.78 | L44: 57077 | M44: 0 | P44: 122144.78
B45: March | D45: 54073 | E45: 2.647892664 | F45: 143179.5 | H45: 54073 | I45: 2.14 | J45: 115716.22 | L45: 54073 | M45: 0 | P45: 115716.22
B46: April | D46: 51275 | E46: 2.639663579 | F46: 135348.75 | H46: 51275 | I46: 2.14 | J46: 109728.5 | L46: 51275 | M46: 0 | P46: 109728.5
B47: May | D47: 58330 | E47: 2.649999486 | F47: 154574.47 | H47: 58330 | I47: 2.14 | J47: 124826.2 | L47: 58330 | M47: 0 | P47: 124826.2
B48: June | D48: 76931 | E48: 2.646520908 | F48: 203599.5 | H48: 76931 | I48: 2.033891929 | J48: 156469.34 | L48: 76931 | M48: 0 | P48: 156469.34
B49: July | D49: 85319 | E49: 2.65 | F49: 226095.35 | H49: 85319 | I49: 2.029010654 | J49: 173113.16 | L49: 85319 | M49: 0 | P49: 173113.16
B50: August | D50: 74706 | E50: 2.6462754 | F50: 197692.65 | H50: 74706 | I50: 2.04205606 | J50: 152553.84 | L50: 74706 | M50: 0 | P50: 152553.84
B51: September | D51: 71375 | E51: 2.632735552 | F51: 187911.5 | H51: 71375 | I51: 2.033660105 | J51: 145152.49 | L51: 71375 | M51: 0 | P51: 145152.49
B52: October | D52: 63983 | E52: 2.631362237 | F52: 168362.45 | H52: 63983 | I52: 2.030728787 | J52: 129932.12 | L52: 63983 | M52: 0 | P52: 129932.12
B53: November | D53: 68477 | E53: 2.648606831 | F53: 181368.65 | H53: 68477 | I53: 2.019674927 | J53: 138301.28 | L53: 68477 | M53: 0 | P53: 138301.28
B54: December | D54: 71324 | E54: 2.647733582 | F54: 188846.95 | H54: 71324 | I54: 2.026160339 | J54: 144513.86 | L54: 71324 | M54: 0 | P54: 144513.86
B56: Total | D56: =SUM(D43:D54) -> 790870 | E56: =IF(D56<>0,F56/D56,0) -> 2.644722546 | F56: =SUM(F43:F54) -> 2091631.72 | H56: =SUM(H43:H54) -> 790870 | I56: =IF(H56<>0,J56/H56,0) -> 2.069330977 | J56: =SUM(J43:J54) -> 1636571.79 | L56: =SUM(L43:L54) -> 790870 | M56: =IF(L56<>0,N56/L56,0) -> 0 | N56: =SUM(N43:N54) -> 0 | P56: =SUM(P43:P54) -> 1636571.79
B58: Total | D58: Network | H58: Line Connection | L58: Transformation Connection | P58: Total Line
B60: Month | D60: Units Billed | E60: Rate | F60: Amount | H60: Units Billed | I60: Rate | J60: Amount | L60: Units Billed | M60: Rate | N60: Amount | P60: Amount
B62: January | D62: =D24+D43 -> 66840 | E62: =IF(D62<>0,F62/D62,0) -> 2.720945542 | F62: =F24+F43 -> 181868 | H62: =H24+H43 -> 67347 | I62: =IF(H62<>0,J62/H62,0) -> 1.952635307 | J62: =J24+J43 -> 131504.13 | L62: =L24+L43 -> 67347 | M62: =IF(L62<>0,N62/L62,0) -> 0.2456559312 | N62: =N24+N43 -> 16544.19 | P62: =J62+N62 -> 148048.32
B63: February | D63: 65713 | E63: 2.724828725 | F63: 179056.67 | H63: 66140 | I63: 1.955012852 | J63: 129304.55 | L63: 66140 | M63: 0.2425387058 | N63: 16041.51 | P63: 145346.06
B64: March | D64: 68445 | E64: 2.768023084 | F64: 189457.34 | H64: 70981 | I64: 1.818423804 | J64: 129073.54 | L64: 70981 | M64: 0.4216221242 | N64: 29927.16 | P64: 159000.7
B65: April | D65: 58829 | E65: 2.714182291 | F65: 159672.63 | H65: 59280 | I65: 1.957699899 | J65: 116052.45 | L65: 59280 | M65: 0.2390156883 | N65: 14168.85 | P65: 130221.3
B66: May | D66: 67375 | E66: 2.726521262 | F66: 183699.37 | H66: 67645 | I66: 1.954099342 | J66: 132185.05 | L66: 67645 | M66: 0.2437282874 | N66: 16487 | P66: 148672.05
B67: June | D67: 86463 | E67: 2.709743358 | F67: 234292.54 | H67: 86463 | I67: 1.896760695 | J67: 163999.62 | L67: 86463 | M67: 0.1951313279 | N67: 16871.64 | P67: 180871.26
B68: July | D68: 96134 | E68: 2.714124555 | F68: 260919.65 | H68: 96134 | I68: 1.889622922 | J68: 181657.01 | L68: 96134 | M68: 0.1991236191 | N68: 19142.55 | P68: 200799.56
B69: August | D69: 83936 | E69: 2.709364873 | F69: 227413.25 | H69: 84314 | I69: 1.899378039 | J69: 160144.16 | L69: 84314 | M69: 0.2017003107 | N69: 17006.16 | P69: 177150.32
B70: September | D70: 81060 | E70: 2.702901554 | F70: 219097.2 | H70: 81261 | I70: 1.882359681 | J70: 152962.43 | L70: 81261 | M70: 0.2153335548 | N70: 17498.22 | P70: 170460.65
B71: October | D71: 71418 | E71: 2.692642611 | F71: 192303.15 | H71: 71876 | I71: 1.894479242 | J71: 136167.59 | L71: 71876 | M71: 0.1943710001 | N71: 13970.61 | P71: 150138.2
B72: November | D72: 76736 | E72: 2.710105166 | F72: 207962.63 | H72: 77186 | I72: 1.880929054 | J72: 145181.39 | L72: 77186 | M72: 0.1997114762 | N72: 15414.93 | P72: 160596.32
B73: December | D73: 79693 | E73: 2.707830424 | F73: 215795.13 | H73: 79814 | I73: 1.894568121 | J73: 151213.06 | L73: 79804 | M73: 0.188080798 | N73: 15009.6 | P73: 166222.66
B75: Total | D75: =SUM(D62:D73) -> 902642 | E75: =IF(D75<>0,F75/D75,0) -> 2.715957777 | F75: =SUM(F62:F73) -> 2451537.56 | H75: =SUM(H62:H73) -> 908441 | I75: =IF(H75<>0,J75/H75,0) -> 1.903750469 | J75: =SUM(J62:J73) -> 1729444.98 | L75: =SUM(L62:L73) -> 908431 | M75: =IF(L75<>0,N75/L75,0) -> 0.2290569344 | N75: =SUM(N62:N73) -> 208082.42 | P75: =SUM(P62:P73) -> 1937527.4

Sheet 7. Current Wholesale
B13: The purpose of this sheet is to calculate the expected billing when current 2012 Uniform Transmission Rates are applied against historical 2011 transmission units.
B20: IESO | D20: Network | H20: Line Connection | L20: Transformation Connection | P20: Total Line
B22: Month | D22: Units Billed | E22: Rate | F22: Amount | H22: Units Billed | I22: Rate | J22: Amount | L22: Units Billed | M22: Rate | N22: Amount | P22: Amount
B24: January | D24: ='6. Historical Wholesale'!D24 -> 8840 | E24: ='5. UTRs and Sub-Transmission'!G22 -> 3.57 | F24: =D24*E24 -> 31558.8 | H24: ='6. Historical Wholesale'!H24 -> 9347 | I24: ='5. UTRs and Sub-Transmission'!G24 -> 0.8 | J24: =H24*I24 -> 7477.6 | L24: ='6. Historical Wholesale'!L24 -> 9347 | M24: ='5. UTRs and Sub-Transmission'!G26 -> 1.86 | N24: =L24*M24 -> 17385.42 | P24: =J24+N24 -> 24863.02
B25: February | D25: ='6. Historical Wholesale'!D25 -> 8636 | E25: =E24 -> 3.57 | F25: =D25*E25 -> 30830.52 | H25: ='6. Historical Wholesale'!H25 -> 9063 | I25: =I24 -> 0.8 | J25: =H25*I25 -> 7250.4 | L25: ='6. Historical Wholesale'!L25 -> 9063 | M25: =M24 -> 1.86 | N25: =L25*M25 -> 16857.18 | P25: 24107.58
B26: March | D26: ='6. Historical Wholesale'!D26 -> 14372 | E26: =E25 -> 3.57 | F26: 51308.04 | H26: ='6. Historical Wholesale'!H26 -> 16908 | I26: =I25 -> 0.8 | J26: 13526.4 | L26: ='6. Historical Wholesale'!L26 -> 16908 | M26: =M25 -> 1.86 | N26: 31448.88 | P26: 44975.28
B27: April | D27: ='6. Historical Wholesale'!D27 -> 7554 | E27: 3.57 | F27: 26967.78 | H27: ='6. Historical Wholesale'!H27 -> 8005 | I27: 0.8 | J27: 6404 | L27: ='6. Historical Wholesale'!L27 -> 8005 | M27: 1.86 | N27: 14889.3 | P27: 21293.3
B28: May | D28: ='6. Historical Wholesale'!D28 -> 9045 | E28: 3.57 | F28: 32290.65 | H28: ='6. Historical Wholesale'!H28 -> 9315 | I28: 0.8 | J28: 7452 | L28: ='6. Historical Wholesale'!L28 -> 9315 | M28: 1.86 | N28: 17325.9 | P28: 24777.9
B29: June | D29: ='6. Historical Wholesale'!D29 -> 9532 | E29: 3.57 | F29: 34029.24 | H29: ='6. Historical Wholesale'!H29 -> 9532 | I29: 0.8 | J29: 7625.6 | L29: ='6. Historical Wholesale'!L29 -> 9532 | M29: 1.86 | N29: 17729.52 | P29: 25355.12
B30: July | D30: ='6. Historical Wholesale'!D30 -> 10815 | E30: 3.57 | F30: 38609.55 | H30: ='6. Historical Wholesale'!H30 -> 10815 | I30: 0.8 | J30: 8652 | L30: ='6. Historical Wholesale'!L30 -> 10815 | M30: 1.86 | N30: 20115.9 | P30: 28767.9
B31: August | D31: ='6. Historical Wholesale'!D31 -> 9230 | E31: 3.57 | F31: 32951.1 | H31: ='6. Historical Wholesale'!H31 -> 9608 | I31: 0.8 | J31: 7686.4 | L31: ='6. Historical Wholesale'!L31 -> 9608 | M31: 1.86 | N31: 17870.88 | P31: 25557.28
B32: September | D32: ='6. Historical Wholesale'!D32 -> 9685 | E32: 3.57 | F32: 34575.45 | H32: ='6. Historical Wholesale'!H32 -> 9886 | I32: 0.8 | J32: 7908.8 | L32: ='6. Historical Wholesale'!L32 -> 9886 | M32: 1.86 | N32: 18387.96 | P32: 26296.76
B33: October | D33: ='6. Historical Wholesale'!D33 -> 7435 | E33: 3.57 | F33: 26542.95 | H33: ='6. Historical Wholesale'!H33 -> 7893 | I33: 0.8 | J33: 6314.4 | L33: ='6. Historical Wholesale'!L33 -> 7893 | M33: 1.86 | N33: 14680.98 | P33: 20995.38
B34: November | D34: ='6. Historical Wholesale'!D34 -> 8259 | E34: 3.57 | F34: 29484.63 | H34: ='6. Historical Wholesale'!H34 -> 8709 | I34: 0.8 | J34: 6967.2 | L34: ='6. Historical Wholesale'!L34 -> 8709 | M34: 1.86 | N34: 16198.74 | P34: 23165.94
B35: December | D35: ='6. Historical Wholesale'!D35 -> 8369 | E35: 3.57 | F35: 29877.33 | H35: ='6. Historical Wholesale'!H35 -> 8490 | I35: 0.8 | J35: 6792 | L35: ='6. Historical Wholesale'!L35 -> 8480 | M35: 1.86 | N35: 15772.8 | P35: 22564.8
B37: Total | D37: =SUM(D24:D35) -> 111772 | E37: =IF(D37<>0,F37/D37,0) -> 3.57 | F37: =SUM(F24:F35) -> 399026.04 | H37: =SUM(H24:H35) -> 117571 | I37: =IF(H37<>0,J37/H37,0) -> 0.8 | J37: =SUM(J24:J35) -> 94056.8 | L37: =SUM(L24:L35) -> 117561 | M37: =IF(L37<>0,N37/L37,0) -> 1.86 | N37: =SUM(N24:N35) -> 218663.46 | P37: =SUM(P24:P35) -> 312720.26
B39: Hydro One | D39: Network | H39: Line Connection | L39: Transformation Connection | P39: Total Line
B41: Month | D41: Units Billed | E41: Rate | F41: Amount | H41: Units Billed | I41: Rate | J41: Amount | L41: Units Billed | M41: Rate | N41: Amount | P41: Amount
B43: January | D43: ='6. Historical Wholesale'!D43 -> 58000 | E43: ='5. UTRs and Sub-Transmission'!G35+'5. UTRs and Sub-Transmission'!G49 -> 2.65 | F43: =D43*E43 -> 153700 | H43: ='6. Historical Wholesale'!H43 -> 58000 | I43: ='5. UTRs and Sub-Transmission'!G37+'5. UTRs and Sub-Transmission'!G51 -> 0.64 | J43: =H43*I43 -> 37120 | L43: ='6. Historical Wholesale'!L43 -> 58000 | M43: ='5. UTRs and Sub-Transmission'!G39 -> 1.5 | N43: =L43*M43 -> 87000 | P43: =J43+N43 -> 124120
B44: February | D44: ='6. Historical Wholesale'!D44 -> 57077 | E44: =E43 -> 2.65 | F44: =D44*E44 -> 151254.05 | H44: ='6. Historical Wholesale'!H44 -> 57077 | I44: =I43 -> 0.64 | J44: =H44*I44 -> 36529.28 | L44: ='6. Historical Wholesale'!L44 -> 57077 | M44: =M43 -> 1.5 | N44: =L44*M44 -> 85615.5 | P44: 122144.78
B45: March | D45: ='6. Historical Wholesale'!D45 -> 54073 | E45: =E44 -> 2.65 | F45: 143293.45 | H45: ='6. Historical Wholesale'!H45 -> 54073 | I45: =I44 -> 0.64 | J45: 34606.72 | L45: ='6. Historical Wholesale'!L45 -> 54073 | M45: =M44 -> 1.5 | N45: 81109.5 | P45: 115716.22
B46: April | D46: ='6. Historical Wholesale'!D46 -> 51275 | E46: 2.65 | F46: 135878.75 | H46: ='6. Historical Wholesale'!H46 -> 51275 | I46: 0.64 | J46: 32816 | L46: ='6. Historical Wholesale'!L46 -> 51275 | M46: =M45 -> 1.5 | N46: 76912.5 | P46: 109728.5
B47: May | D47: ='6. Historical Wholesale'!D47 -> 58330 | E47: 2.65 | F47: 154574.5 | H47: ='6. Historical Wholesale'!H47 -> 58330 | I47: 0.64 | J47: 37331.2 | L47: ='6. Historical Wholesale'!L47 -> 58330 | M47: 1.5 | N47: 87495 | P47: 124826.2
B48: June | D48: ='6. Historical Wholesale'!D48 -> 76931 | E48: 2.65 | F48: 203867.15 | H48: ='6. Historical Wholesale'!H48 -> 76931 | I48: 0.64 | J48: 49235.84 | L48: ='6. Historical Wholesale'!L48 -> 76931 | M48: 1.5 | N48: 115396.5 | P48: 164632.34
B49: July | D49: ='6. Historical Wholesale'!D49 -> 85319 | E49: 2.65 | F49: 226095.35 | H49: ='6. Historical Wholesale'!H49 -> 85319 | I49: 0.64 | J49: 54604.16 | L49: ='6. Historical Wholesale'!L49 -> 85319 | M49: 1.5 | N49: 127978.5 | P49: 182582.66
B50: August | D50: ='6. Historical Wholesale'!D50 -> 74706 | E50: 2.65 | F50: 197970.9 | H50: ='6. Historical Wholesale'!H50 -> 74706 | I50: 0.64 | J50: 47811.84 | L50: ='6. Historical Wholesale'!L50 -> 74706 | M50: 1.5 | N50: 112059 | P50: 159870.84
B51: September | D51: ='6. Historical Wholesale'!D51 -> 71375 | E51: 2.65 | F51: 189143.75 | H51: ='6. Historical Wholesale'!H51 -> 71375 | I51: 0.64 | J51: 45680 | L51: ='6. Historical Wholesale'!L51 -> 71375 | M51: 1.5 | N51: 107062.5 | P51: 152742.5
B52: October | D52: ='6. Historical Wholesale'!D52 -> 63983 | E52: 2.65 | F52: 169554.95 | H52: ='6. Historical Wholesale'!H52 -> 63983 | I52: 0.64 | J52: 40949.12 | L52: ='6. Historical Wholesale'!L52 -> 63983 | M52: 1.5 | N52: 95974.5 | P52: 136923.62
B53: November | D53: ='6. Historical Wholesale'!D53 -> 68477 | E53: 2.65 | F53: 181464.05 | H53: ='6. Historical Wholesale'!H53 -> 68477 | I53: 0.64 | J53: 43825.28 | L53: ='6. Historical Wholesale'!L53 -> 68477 | M53: 1.5 | N53: 102715.5 | P53: 146540.78
B54: December | D54: ='6. Historical Wholesale'!D54 -> 71324 | E54: 2.65 | F54: 189008.6 | H54: ='6. Historical Wholesale'!H54 -> 71324 | I54: 0.64 | J54: 45647.36 | L54: ='6. Historical Wholesale'!L54 -> 71324 | M54: 1.5 | N54: 106986 | P54: 152633.36
B56: Total | D56: =SUM(D43:D54) -> 790870 | E56: =IF(D56<>0,F56/D56,0) -> 2.65 | F56: =SUM(F43:F54) -> 2095805.5 | H56: =SUM(H43:H54) -> 790870 | I56: =IF(H56<>0,J56/H56,0) -> 0.64 | J56: =SUM(J43:J54) -> 506156.8 | L56: =SUM(L43:L54) -> 790870 | M56: =IF(L56<>0,N56/L56,0) -> 1.5 | N56: =SUM(N43:N54) -> 1186305 | P56: =SUM(P43:P54) -> 1692461.8
B58: Total | D58: Network | H58: Line Connection | L58: Transformation Connection | P58: Total Line
B60: Month | D60: Units Billed | E60: Rate | F60: Amount | H60: Units Billed | I60: Rate | J60: Amount | L60: Units Billed | M60: Rate | N60: Amount | P60: Amount
B62: January | D62: =D24+D43 -> 66840 | E62: =IF(D62<>0,F62/D62,0) -> 2.771675643 | F62: =F24+F43 -> 185258.8 | H62: =H24+H43 -> 67347 | I62: =IF(H62<>0,J62/H62,0) -> 0.6622061859 | J62: =J24+J43 -> 44597.6 | L62: =L24+L43 -> 67347 | M62: =IF(L62<>0,N62/L62,0) -> 1.549963918 | N62: =N24+N43 -> 104385.42 | P62: =J62+N62 -> 148983.02
B63: February | D63: 65713 | E63: 2.770906366 | F63: 182084.57 | H63: 66140 | I63: 0.6619244028 | J63: 43779.68 | L63: 66140 | M63: 1.549329906 | N63: 102472.68 | P63: 146252.36
B64: March | D64: 68445 | E64: 2.84318051 | F64: 194601.49 | H64: 70981 | I64: 0.6781127344 | J64: 48133.12 | L64: 70981 | M64: 1.585753652 | N64: 112558.38 | P64: 160691.5
B65: April | D65: 58829 | E65: 2.768133574 | F65: 162846.53 | H65: 59280 | I65: 0.6616059379 | J65: 39220 | L65: 59280 | M65: 1.54861336 | N65: 91801.8 | P65: 131021.8
B66: May | D66: 67375 | E66: 2.77350872 | F66: 186865.15 | H66: 67645 | I66: 0.6620326706 | J66: 44783.2 | L66: 67645 | M66: 1.549573509 | N66: 104820.9 | P66: 149604.1
B67: June | D67: 86463 | E67: 2.751424193 | F67: 237896.39 | H67: 86463 | I67: 0.6576389901 | J67: 56861.44 | L67: 86463 | M67: 1.539687728 | N67: 133126.02 | P67: 189987.46
B68: July | D68: 96134 | E68: 2.753499282 | F68: 264704.9 | H68: 96134 | I68: 0.6579998752 | J68: 63256.16 | L68: 96134 | M68: 1.540499719 | N68: 148094.4 | P68: 211350.56
B69: August | D69: 83936 | E69: 2.751167556 | F69: 230922 | H69: 84314 | I69: 0.6582327965 | J69: 55498.24 | L69: 84314 | M69: 1.541023792 | N69: 129929.88 | P69: 185428.12
B70: September | D70: 81060 | E70: 2.759921046 | F70: 223719.2 | H70: 81261 | I70: 0.6594651801 | J70: 53588.8 | L70: 81261 | M70: 1.543796655 | N70: 125450.46 | P70: 179039.26
B71: October | D71: 71418 | E71: 2.745776975 | F71: 196097.9 | H71: 71876 | I71: 0.6575702599 | J71: 47263.52 | L71: 71876 | M71: 1.539533085 | N71: 110655.48 | P71: 157919
B72: November | D72: 76736 | E72: 2.749018453 | F72: 210948.68 | H72: 77186 | I72: 0.6580530148 | J72: 50792.48 | L72: 77186 | M72: 1.540619283 | N72: 118914.24 | P72: 169706.72
B73: December | D73: 79693 | E73: 2.746614257 | F73: 218885.93 | H73: 79814 | I73: 0.6570195705 | J73: 52439.36 | L73: 79804 | M73: 1.538253722 | N73: 122758.8 | P73: 175198.16
B75: Total | D75: =SUM(D62:D73) -> 902642 | E75: =IF(D75<>0,F75/D75,0) -> 2.7639214 | F75: =SUM(F62:F73) -> 2494831.54 | H75: =SUM(H62:H73) -> 908441 | I75: =IF(H75<>0,J75/H75,0) -> 0.6607072996 | J75: =SUM(J62:J73) -> 600213.6 | L75: =SUM(L62:L73) -> 908431 | M75: =IF(L75<>0,N75/L75,0) -> 1.546587974 | N75: =SUM(N62:N73) -> 1404968.46 | P75: =SUM(P62:P73) -> 2005182.06

Sheet 8. Forecast Wholesale
B13: The purpose of this sheet is to calculate the expected billing when forecasted 2013 Uniform Transmission Rates are applied against historical 2011 transmission units.
B20: IESO | D20: Network | H20: Line Connection | L20: Transformation Connection | P20: Total Line
B22: Month | D22: Units Billed | E22: Rate | F22: Amount | H22: Units Billed | I22: Rate | J22: Amount | L22: Units Billed | M22: Rate | N22: Amount | P22: Amount
B24: January | D24: ='6. Historical Wholesale'!D24 -> 8840 | E24: ='5. UTRs and Sub-Transmission'!I22 -> 3.63 | F24: =D24*E24 -> 32089.2 | H24: ='6. Historical Wholesale'!H24 -> 9347 | I24: ='5. UTRs and Sub-Transmission'!I24 -> 0.75 | J24: =H24*I24 -> 7010.25 | L24: ='6. Historical Wholesale'!L24 -> 9347 | M24: ='5. UTRs and Sub-Transmission'!I26 -> 1.85 | N24: =L24*M24 -> 17291.95 | P24: =J24+N24 -> 24302.2
B25: February | D25: ='6. Historical Wholesale'!D25 -> 8636 | E25: =E24 -> 3.63 | F25: 31348.68 | H25: ='6. Historical Wholesale'!H25 -> 9063 | I25: =I24 -> 0.75 | J25: 6797.25 | L25: ='6. Historical Wholesale'!L25 -> 9063 | M25: =M24 -> 1.85 | N25: 16766.55 | P25: 23563.8
B26: March | D26: ='6. Historical Wholesale'!D26 -> 14372 | E26: 3.63 | F26: 52170.36 | H26: ='6. Historical Wholesale'!H26 -> 16908 | I26: 0.75 | J26: 12681 | L26: ='6. Historical Wholesale'!L26 -> 16908 | M26: 1.85 | N26: 31279.8 | P26: 43960.8
B27: April | D27: ='6. Historical Wholesale'!D27 -> 7554 | E27: 3.63 | F27: 27421.02 | H27: ='6. Historical Wholesale'!H27 -> 8005 | I27: 0.75 | J27: 6003.75 | L27: ='6. Historical Wholesale'!L27 -> 8005 | M27: 1.85 | N27: 14809.25 | P27: 20813
B28: May | D28: ='6. Historical Wholesale'!D28 -> 9045 | E28: 3.63 | F28: 32833.35 | H28: ='6. Historical Wholesale'!H28 -> 9315 | I28: 0.75 | J28: 6986.25 | L28: ='6. Historical Wholesale'!L28 -> 9315 | M28: 1.85 | N28: 17232.75 | P28: 24219
B29: June | D29: ='6. Historical Wholesale'!D29 -> 9532 | E29: 3.63 | F29: 34601.16 | H29: ='6. Historical Wholesale'!H29 -> 9532 | I29: 0.75 | J29: 7149 | L29: ='6. Historical Wholesale'!L29 -> 9532 | M29: 1.85 | N29: 17634.2 | P29: 24783.2
B30: July | D30: ='6. Historical Wholesale'!D30 -> 10815 | E30: 3.63 | F30: 39258.45 | H30: ='6. Historical Wholesale'!H30 -> 10815 | I30: 0.75 | J30: 8111.25 | L30: ='6. Historical Wholesale'!L30 -> 10815 | M30: 1.85 | N30: 20007.75 | P30: 28119
B31: August | D31: ='6. Historical Wholesale'!D31 -> 9230 | E31: 3.63 | F31: 33504.9 | H31: ='6. Historical Wholesale'!H31 -> 9608 | I31: 0.75 | J31: 7206 | L31: ='6. Historical Wholesale'!L31 -> 9608 | M31: 1.85 | N31: 17774.8 | P31: 24980.8
B32: September | D32: ='6. Historical Wholesale'!D32 -> 9685 | E32: 3.63 | F32: 35156.55 | H32: ='6. Historical Wholesale'!H32 -> 9886 | I32: 0.75 | J32: 7414.5 | L32: ='6. Historical Wholesale'!L32 -> 9886 | M32: 1.85 | N32: 18289.1 | P32: 25703.6
B33: October | D33: ='6. Historical Wholesale'!D33 -> 7435 | E33: 3.63 | F33: 26989.05 | H33: ='6. Historical Wholesale'!H33 -> 7893 | I33: 0.75 | J33: 5919.75 | L33: ='6. Historical Wholesale'!L33 -> 7893 | M33: 1.85 | N33: 14602.05 | P33: 20521.8
B34: November | D34: ='6. Historical Wholesale'!D34 -> 8259 | E34: 3.63 | F34: 29980.17 | H34: ='6. Historical Wholesale'!H34 -> 8709 | I34: 0.75 | J34: 6531.75 | L34: ='6. Historical Wholesale'!L34 -> 8709 | M34: 1.85 | N34: 16111.65 | P34: 22643.4
B35: December | D35: ='6. Historical Wholesale'!D35 -> 8369 | E35: 3.63 | F35: 30379.47 | H35: ='6. Historical Wholesale'!H35 -> 8490 | I35: 0.75 | J35: 6367.5 | L35: ='6. Historical Wholesale'!L35 -> 8480 | M35: 1.85 | N35: 15688 | P35: 22055.5
B37: Total | D37: =SUM(D24:D35) -> 111772 | E37: =IF(D37<>0,F37/D37,0) -> 3.63 | F37: =SUM(F24:F35) -> 405732.36 | H37: =SUM(H24:H35) -> 117571 | I37: =IF(H37<>0,J37/H37,0) -> 0.75 | J37: =SUM(J24:J35) -> 88178.25 | L37: =SUM(L24:L35) -> 117561 | M37: =IF(L37<>0,N37/L37,0) -> 1.85 | N37: =SUM(N24:N35) -> 217487.85 | P37: =SUM(P24:P35) -> 305666.1
B39: Hydro One | D39: Network | H39: Line Connection | L39: Transformation Connection | P39: Total Line
B41: Month | D41: Units Billed | E41: Rate | F41: Amount | H41: Units Billed | I41: Rate | J41: Amount | L41: Units Billed | M41: Rate | N41: Amount | P41: Amount
B43: January | D43: ='6. Historical Wholesale'!D43 -> 58000 | E43: ='5. UTRs and Sub-Transmission'!I35+'5. UTRs and Sub-Transmission'!I49 -> 2.65 | F43: =D43*E43 -> 153700 | H43: ='6. Historical Wholesale'!H43 -> 58000 | I43: ='5. UTRs and Sub-Transmission'!I37+'5. UTRs and Sub-Transmission'!I51 -> 0.64 | J43: =H43*I43 -> 37120 | L43: ='6. Historical Wholesale'!L43 -> 58000 | M43: ='5. UTRs and Sub-Transmission'!I39 -> 1.5 | N43: =L43*M43 -> 87000 | P43: =J43+N43 -> 124120
B44: February | D44: ='6. Historical Wholesale'!D44 -> 57077 | E44: =E43 -> 2.65 | F44: 151254.05 | H44: ='6. Historical Wholesale'!H44 -> 57077 | I44: =I43 -> 0.64 | J44: 36529.28 | L44: ='6. Historical Wholesale'!L44 -> 57077 | M44: =M43 -> 1.5 | N44: 85615.5 | P44: 122144.78
B45: March | D45: ='6. Historical Wholesale'!D45 -> 54073 | E45: 2.65 | F45: 143293.45 | H45: ='6. Historical Wholesale'!H45 -> 54073 | I45: 0.64 | J45: 34606.72 | L45: ='6. Historical Wholesale'!L45 -> 54073 | M45: 1.5 | N45: 81109.5 | P45: 115716.22
B46: April | D46: ='6. Historical Wholesale'!D46 -> 51275 | E46: 2.65 | F46: 135878.75 | H46: ='6. Historical Wholesale'!H46 -> 51275 | I46: 0.64 | J46: 32816 | L46: ='6. Historical Wholesale'!L46 -> 51275 | M46: 1.5 | N46: 76912.5 | P46: 109728.5
B47: May | D47: ='6. Historical Wholesale'!D47 -> 58330 | E47: 2.65 | F47: 154574.5 | H47: ='6. Historical Wholesale'!H47 -> 58330 | I47: 0.64 | J47: 37331.2 | L47: ='6. Historical Wholesale'!L47 -> 58330 | M47: 1.5 | N47: 87495 | P47: 124826.2
B48: June | D48: ='6. Historical Wholesale'!D48 -> 76931 | E48: 2.65 | F48: 203867.15 | H48: ='6. Historical Wholesale'!H48 -> 76931 | I48: 0.64 | J48: 49235.84 | L48: ='6. Historical Wholesale'!L48 -> 76931 | M48: 1.5 | N48: 115396.5 | P48: 164632.34
B49: July | D49: ='6. Historical Wholesale'!D49 -> 85319 | E49: 2.65 | F49: 226095.35 | H49: ='6. Historical Wholesale'!H49 -> 85319 | I49: 0.64 | J49: 54604.16 | L49: ='6. Historical Wholesale'!L49 -> 85319 | M49: 1.5 | N49: 127978.5 | P49: 182582.66
B50: August | D50: ='6. Historical Wholesale'!D50 -> 74706 | E50: 2.65 | F50: 197970.9 | H50: ='6. Historical Wholesale'!H50 -> 74706 | I50: 0.64 | J50: 47811.84 | L50: ='6. Historical Wholesale'!L50 -> 74706 | M50: 1.5 | N50: 112059 | P50: 159870.84
B51: September | D51: ='6. Historical Wholesale'!D51 -> 71375 | E51: 2.65 | F51: 189143.75 | H51: ='6. Historical Wholesale'!H51 -> 71375 | I51: 0.64 | J51: 45680 | L51: ='6. Historical Wholesale'!L51 -> 71375 | M51: 1.5 | N51: 107062.5 | P51: 152742.5
B52: October | D52: ='6. Historical Wholesale'!D52 -> 63983 | E52: 2.65 | F52: 169554.95 | H52: ='6. Historical Wholesale'!H52 -> 63983 | I52: 0.64 | J52: 40949.12 | L52: ='6. Historical Wholesale'!L52 -> 63983 | M52: 1.5 | N52: 95974.5 | P52: 136923.62
B53: November | D53: ='6. Historical Wholesale'!D53 -> 68477 | E53: 2.65 | F53: 181464.05 | H53: ='6. Historical Wholesale'!H53 -> 68477 | I53: 0.64 | J53: 43825.28 | L53: ='6. Historical Wholesale'!L53 -> 68477 | M53: 1.5 | N53: 102715.5 | P53: 146540.78
B54: December | D54: ='6. Historical Wholesale'!D54 -> 71324 | E54: 2.65 | F54: 189008.6 | H54: ='6. Historical Wholesale'!H54 -> 71324 | I54: 0.64 | J54: 45647.36 | L54: ='6. Historical Wholesale'!L54 -> 71324 | M54: 1.5 | N54: 106986 | P54: 152633.36
B56: Total | D56: =SUM(D43:D54) -> 790870 | E56: =IF(D56<>0,F56/D56,0) -> 2.65 | F56: =SUM(F43:F54) -> 2095805.5 | H56: =SUM(H43:H54) -> 790870 | I56: =IF(H56<>0,J56/H56,0) -> 0.64 | J56: =SUM(J43:J54) -> 506156.8 | L56: =SUM(L43:L54) -> 790870 | M56: =IF(L56<>0,N56/L56,0) -> 1.5 | N56: =SUM(N43:N54) -> 1186305 | P56: =SUM(P43:P54) -> 1692461.8
B58: Total | D58: Network | H58: Line Connection | L58: Transformation Connection | P58: Total Line
B60: Month | D60: Units Billed | E60: Rate | F60: Amount | H60: Units Billed | I60: Rate | J60: Amount | L60: Units Billed | M60: Rate | N60: Amount | P60: Amount
B62: January | D62: =D24+D43 -> 66840 | E62: =IF(D62<>0,F62/D62,0) -> 2.779611011 | F62: =F24+F43 -> 185789.2 | H62: =H24+H43 -> 67347 | I62: =IF(H62<>0,J62/H62,0) -> 0.6552667528 | J62: =J24+J43 -> 44130.25 | L62: =L24+L43 -> 67347 | M62: =IF(L62<>0,N62/L62,0) -> 1.548576032 | N62: =N24+N43 -> 104291.95 | P62: =J62+N62 -> 148422.2
B63: February | D63: 65713 | E63: 2.778791563 | F63: 182602.73 | H63: 66140 | I63: 0.6550730269 | J63: 43326.53 | L63: 66140 | M63: 1.547959631 | N63: 102382.05 | P63: 145708.58
B64: March | D64: 68445 | E64: 2.855779239 | F64: 195463.81 | H64: 70981 | I64: 0.6662025049 | J64: 47287.72 | L64: 70981 | M64: 1.583371606 | N64: 112389.3 | P64: 159677.02
B65: April | D65: 58829 | E65: 2.775837937 | F65: 163299.77 | H65: 59280 | I65: 0.6548540823 | J65: 38819.75 | L65: 59280 | M65: 1.547262989 | N65: 91721.75 | P65: 130541.5
B66: May | D66: 67375 | E66: 2.781563636 | F66: 187407.85 | H66: 67645 | I66: 0.655147461 | J66: 44317.45 | L66: 67645 | M66: 1.548196467 | N66: 104727.75 | P66: 149045.2
B67: June | D67: 86463 | E67: 2.758038814 | F67: 238468.31 | H67: 86463 | I67: 0.6521268057 | J67: 56384.84 | L67: 86463 | M67: 1.538585291 | N67: 133030.7 | P67: 189415.54
B68: July | D68: 96134 | E68: 2.760249235 | F68: 265353.8 | H68: 96134 | I68: 0.6523749142 | J68: 62715.41 | L68: 96134 | M68: 1.539374727 | N68: 147986.25 | P68: 210701.66
B69: August | D69: 83936 | E69: 2.75776544 | F69: 231475.8 | H69: 84314 | I69: 0.6525350476 | J69: 55017.84 | L69: 84314 | M69: 1.539884242 | N69: 129833.8 | P69: 184851.64
B70: September | D70: 81060 | E70: 2.76708981 | F70: 224300.3 | H70: 81261 | I70: 0.6533823113 | J70: 53094.5 | L70: 81261 | M70: 1.542580081 | N70: 125351.6 | P70: 178446.1
B71: October | D71: 71418 | E71: 2.752023299 | F71: 196544 | H71: 71876 | I71: 0.6520795537 | J71: 46868.87 | L71: 71876 | M71: 1.538434944 | N71: 110576.55 | P71: 157445.42
B72: November | D72: 76736 | E72: 2.755476178 | F72: 211444.22 | H72: 77186 | I72: 0.6524114477 | J72: 50357.03 | L72: 77186 | M72: 1.53949097 | N72: 118827.15 | P72: 169184.18
B73: December | D73: 79693 | E73: 2.752915187 | F73: 219388.07 | H73: 79814 | I73: 0.6517009547 | J73: 52014.86 | L73: 79804 | M73: 1.537191118 | N73: 122674 | P73: 174688.86
B75: Total | D75: =SUM(D62:D73) -> 902642 | E75: =IF(D75<>0,F75/D75,0) -> 2.771351056 | F75: =SUM(F62:F73) -> 2501537.86 | H75: =SUM(H62:H73) -> 908441 | I75: =IF(H75<>0,J75/H75,0) -> 0.6542362685 | J75: =SUM(J62:J73) -> 594335.05 | L75: =SUM(L62:L73) -> 908431 | M75: =IF(L75<>0,N75/L75,0) -> 1.545293864 | N75: =SUM(N62:N73) -> 1403792.85 | P75: =SUM(P62:P73) -> 1998127.9

Sheet 9. Adj Network to Current WS
B13: The purpose of this sheet is to re-align the current RTS Network Rates to recover current wholesale network costs.
B22: Rate Class | D22: Unit | F22: Current RTSR-Network | H22: Loss Adjusted Billed kWh | J22: Loss Adjusted Billed kW | L22: Billed Amount | N22: Billed Amount % | P22: Current Wholesale Billing | R22: Proposed RTSR Network
B25: =IF('3. Rate Classes'!Q24=1,'3. Rate Classes'!C24, 0) -> Residential | D25: =IF(ISERROR(VLOOKUP($B25, '3. Rate Classes'!$C$24:$H$45,6,0)), "", VLOOKUP($B25, '3. Rate Classes'!$C$24:$H$45,6,0)) -> kWh | F25: =IF(ISERROR(VLOOKUP($B25,'3. Rate Classes'!$C$24:$N$45, 8,0)), "", VLOOKUP($B25,'3. Rate Classes'!$C$24:$N$45, 8,0)) -> 0.0059 | H25: =VLOOKUP('9. Adj Network to Current WS'!$B25, '4. RRR Data'!$B$27:$M$49,11,0) -> 147654537.5 | J25: =VLOOKUP('9. Adj Network to Current WS'!$B25, '4. RRR Data'!$B$27:$M$49,12,0) -> 0 | L25: =IF(F25="", "", IF(D25="kWh", F25*H25, F25*J25)) -> 871161.7714 | N25: =IF(ISERROR(L25/$L$49), "", L25/$L$49) -> 0.3216283378 | P25: =IF(ISERROR('7. Current Wholesale'!$F$75*N25), "", '7. Current Wholesale'!$F$75*N25) -> 802408.5213 | R25: =IF(D25="","",IF(D25="kWh",IF(H25<>0,P25/H25,),IF(J25<>0,P25/J25,0))) -> 0.005434364123
B26: =IF('3. Rate Classes'!Q25=1,'3. Rate Classes'!C25, 0) -> General Service Less Than 50 kW | D26: =IF(ISERROR(VLOOKUP($B26, '3. Rate Classes'!$C$24:$H$45,6,0)), "", VLOOKUP($B26, '3. Rate Classes'!$C$24:$H$45,6,0)) -> kWh | F26: =IF(ISERROR(VLOOKUP($B26,'3. Rate Classes'!$C$24:$N$45, 8,0)), "", VLOOKUP($B26,'3. Rate Classes'!$C$24:$N$45, 8,0)) -> 0.0054 | H26: =VLOOKUP('9. Adj Network to Current WS'!$B26, '4. RRR Data'!$B$27:$M$49,11,0) -> 51030462.68 | J26: =VLOOKUP('9. Adj Network to Current WS'!$B26, '4. RRR Data'!$B$27:$M$49,12,0) -> 0 | L26: =IF(F26="", "", IF(D26="kWh", F26*H26, F26*J26)) -> 275564.4985 | N26: =IF(ISERROR(L26/$L$49), "", L26/$L$49) -> 0.1017369615 | P26: =IF(ISERROR('7. Current Wholesale'!$F$75*N26), "", '7. Current Wholesale'!$F$75*N26) -> 253816.5803 | R26: =IF(D26="","",IF(D26="kWh",IF(H26<>0,P26/H26,),IF(J26<>0,P26/J26,0))) -> 0.00497382479
B27: =IF('3. Rate Classes'!Q26=1,'3. Rate Classes'!C26, 0) -> General Service 50 to 999 kW | D27: =IF(ISERROR(VLOOKUP($B27, '3. Rate Classes'!$C$24:$H$45,6,0)), "", VLOOKUP($B27, '3. Rate Classes'!$C$24:$H$45,6,0)) -> kW | F27: =IF(ISERROR(VLOOKUP($B27,'3. Rate Classes'!$C$24:$N$45, 8,0)), "", VLOOKUP($B27,'3. Rate Classes'!$C$24:$N$45, 8,0)) -> 2.4575 | H27: =VLOOKUP('9. Adj Network to Current WS'!$B27, '4. RRR Data'!$B$27:$M$49,11,0) -> 76414560 | J27: =VLOOKUP('9. Adj Network to Current WS'!$B27, '4. RRR Data'!$B$27:$M$49,12,0) -> 223584 | L27: 549457.68 | N27: 0.2028568816 | P27: =IF(ISERROR('7. Current Wholesale'!$F$75*N27), "", '7. Current Wholesale'!$F$75*N27) -> 506093.7463 | R27: 2.263550819
B28: =IF('3. Rate Classes'!Q27=1,'3. Rate Classes'!C27, 0) -> General Service 1,000 to 4,999 kW | D28: =IF(ISERROR(VLOOKUP($B28, '3. Rate Classes'!$C$24:$H$45,6,0)), "", VLOOKUP($B28, '3. Rate Classes'!$C$24:$H$45,6,0)) -> kW | F28: =IF(ISERROR(VLOOKUP($B28,'3. Rate Classes'!$C$24:$N$45, 8,0)), "", VLOOKUP($B28,'3. Rate Classes'!$C$24:$N$45, 8,0)) -> 2.6692 | H28: =VLOOKUP('9. Adj Network to Current WS'!$B28, '4. RRR Data'!$B$27:$M$49,11,0) -> 99303972 | J28: =VLOOKUP('9. Adj Network to Current WS'!$B28, '4. RRR Data'!$B$27:$M$49,12,0) -> 168548 | L28: 449888.3216 | N28: 0.1660963989 | P28: =IF(ISERROR('7. Current Wholesale'!$F$75*N28), "", '7. Current Wholesale'!$F$75*N28) -> 414382.5346 | R28: 2.458543172
B29: =IF('3. Rate Classes'!Q28=1,'3. Rate Classes'!C28, 0) -> Large Use | D29: =IF(ISERROR(VLOOKUP($B29, '3. Rate Classes'!$C$24:$H$45,6,0)), "", VLOOKUP($B29, '3. Rate Classes'!$C$24:$H$45,6,0)) -> kW | F29: =IF(ISERROR(VLOOKUP($B29,'3. Rate Classes'!$C$24:$N$45, 8,0)), "", VLOOKUP($B29,'3. Rate Classes'!$C$24:$N$45, 8,0)) -> 2.9591 | H29: =VLOOKUP('9. Adj Network to Current WS'!$B29, '4. RRR Data'!$B$27:$M$49,11,0) -> 95335410 | J29: =VLOOKUP('9. Adj Network to Current WS'!$B29, '4. RRR Data'!$B$27:$M$49,12,0) -> 159576 | L29: 472201.3416 | N29: 0.1743342483 | P29: =IF(ISERROR('7. Current Wholesale'!$F$75*N29), "", '7. Current Wholesale'!$F$75*N29) -> 434934.5813 | R29: 2.725563877
B30: =IF('3. Rate Classes'!Q29=1,'3. Rate Classes'!C29, 0) -> Unmetered Scattered Load | D30: =IF(ISERROR(VLOOKUP($B30, '3. Rate Classes'!$C$24:$H$45,6,0)), "", VLOOKUP($B30, '3. Rate Classes'!$C$24:$H$45,6,0)) -> kWh | F30: =IF(ISERROR(VLOOKUP($B30,'3. Rate Classes'!$C$24:$N$45, 8,0)), "", VLOOKUP($B30,'3. Rate Classes'!$C$24:$N$45, 8,0)) -> 0.0054 | H30: =VLOOKUP('9. Adj Network to Current WS'!$B30, '4. RRR Data'!$B$27:$M$49,11,0) -> 634129.4747 | J30: =VLOOKUP('9. Adj Network to Current WS'!$B30, '4. RRR Data'!$B$27:$M$49,12,0) -> 0 | L30: 3424.299163 | N30: 0.001264233216 | P30: =IF(ISERROR('7. Current Wholesale'!$F$75*N30), "", '7. Current Wholesale'!$F$75*N30) -> 3154.048902 | R30: 0.00497382479
B31: =IF('3. Rate Classes'!Q30=1,'3. Rate Classes'!C30, 0) -> Sentinel Lighting | D31: =IF(ISERROR(VLOOKUP($B31, '3. Rate Classes'!$C$24:$H$45,6,0)), "", VLOOKUP($B31, '3. Rate Classes'!$C$24:$H$45,6,0)) -> kW | F31: =IF(ISERROR(VLOOKUP($B31,'3. Rate Classes'!$C$24:$N$45, 8,0)), "", VLOOKUP($B31,'3. Rate Classes'!$C$24:$N$45, 8,0)) -> 1.8979 | H31: =VLOOKUP('9. Adj Network to Current WS'!$B31, '4. RRR Data'!$B$27:$M$49,11,0) -> 54410 | J31: =VLOOKUP('9. Adj Network to Current WS'!$B31, '4. RRR Data'!$B$27:$M$49,12,0) -> 18 | L31: 34.1622 | N31: 1.261250432e-05 | P31: =IF(ISERROR('7. Current Wholesale'!$F$75*N31), "", '7. Current Wholesale'!$F$75*N31) -> 31.46607357 | R31: 1.748115198
B32: =IF('3. Rate Classes'!Q31=1,'3. Rate Classes'!C31, 0) -> Street Lighting | D32: =IF(ISERROR(VLOOKUP($B32, '3. Rate Classes'!$C$24:$H$45,6,0)), "", VLOOKUP($B32, '3. Rate Classes'!$C$24:$H$45,6,0)) -> kW | F32: =IF(ISERROR(VLOOKUP($B32,'3. Rate Classes'!$C$24:$N$45, 8,0)), "", VLOOKUP($B32,'3. Rate Classes'!$C$24:$N$45, 8,0)) -> 1.8979 | H32: =VLOOKUP('9. Adj Network to Current WS'!$B32, '4. RRR Data'!$B$27:$M$49,11,0) -> 4189868 | J32: =VLOOKUP('9. Adj Network to Current WS'!$B32, '4. RRR Data'!$B$27:$M$49,12,0) -> 920 | L32: 1746.068 | N32: 0.0006446391095 | P32: =IF(ISERROR('7. Current Wholesale'!$F$75*N32), "", '7. Current Wholesale'!$F$75*N32) -> 1608.265982 | R32: 1.748115198
B33: =IF('3. Rate Classes'!Q32=1,'3. Rate Classes'!C32, 0) -> Embedded Distributor | D33: =IF(ISERROR(VLOOKUP($B33, '3. Rate Classes'!$C$24:$H$45,6,0)), "", VLOOKUP($B33, '3. Rate Classes'!$C$24:$H$45,6,0)) -> kW | F33: =IF(ISERROR(VLOOKUP($B33,'3. Rate Classes'!$C$24:$N$45, 8,0)), "", VLOOKUP($B33,'3. Rate Classes'!$C$24:$N$45, 8,0)) -> 3.5709 | H33: =VLOOKUP('9. Adj Network to Current WS'!$B33, '4. RRR Data'!$B$27:$M$49,11,0) -> 17400000 | J33: =VLOOKUP('9. Adj Network to Current WS'!$B33, '4. RRR Data'!$B$27:$M$49,12,0) -> 23837 | L33: 85119.5433 | N33: 0.03142568708 | P33: =IF(ISERROR('7. Current Wholesale'!$F$75*N33), "", '7. Current Wholesale'!$F$75*N33) -> 78401.7953 | R33: 3.289079804
B34: =IF('3. Rate Classes'!Q33=1,'3. Rate Classes'!C33, 0) -> 0 | D34: =IF(ISERROR(VLOOKUP($B34, '3. Rate Classes'!$C$24:$H$45,6,0)), "", VLOOKUP($B34, '3. Rate Classes'!$C$24:$H$45,6,0)) ->  | F34: =IF(ISERROR(VLOOKUP($B34,'3. Rate Classes'!$C$24:$N$45, 8,0)), "", VLOOKUP($B34,'3. Rate Classes'!$C$24:$N$45, 8,0)) ->  | H34: =VLOOKUP('9. Adj Network to Current WS'!$B34, '4. RRR Data'!$B$27:$M$49,11,0) -> 0 | J34: =VLOOKUP('9. Adj Network to Current WS'!$B34, '4. RRR Data'!$B$27:$M$49,12,0) -> 0 | P34: =IF(ISERROR('7. Current Wholesale'!$F$75*N34), "", '7. Current Wholesale'!$F$75*N34) -> 
B35: =IF('3. Rate Classes'!Q34=1,'3. Rate Classes'!C34, 0) -> 0 | D35: =IF(ISERROR(VLOOKUP($B35, '3. Rate Classes'!$C$24:$H$45,6,0)), "", VLOOKUP($B35, '3. Rate Classes'!$C$24:$H$45,6,0)) ->  | F35: =IF(ISERROR(VLOOKUP($B35,'3. Rate Classes'!$C$24:$N$45, 8,0)), "", VLOOKUP($B35,'3. Rate Classes'!$C$24:$N$45, 8,0)) ->  | H35: =VLOOKUP('9. Adj Network to Current WS'!$B35, '4. RRR Data'!$B$27:$M$49,11,0) -> 0 | J35: =VLOOKUP('9. Adj Network to Current WS'!$B35, '4. RRR Data'!$B$27:$M$49,12,0) -> 0 | P35: =IF(ISERROR('7. Current Wholesale'!$F$75*N35), "", '7. Current Wholesale'!$F$75*N35) -> 
B36: =IF('3. Rate Classes'!Q35=1,'3. Rate Classes'!C35, 0) -> 0 | D36: =IF(ISERROR(VLOOKUP($B36, '3. Rate Classes'!$C$24:$H$45,6,0)), "", VLOOKUP($B36, '3. Rate Classes'!$C$24:$H$45,6,0)) ->  | F36: =IF(ISERROR(VLOOKUP($B36,'3. Rate Classes'!$C$24:$N$45, 8,0)), "", VLOOKUP($B36,'3. Rate Classes'!$C$24:$N$45, 8,0)) ->  | H36: =VLOOKUP('9. Adj Network to Current WS'!$B36, '4. RRR Data'!$B$27:$M$49,11,0) -> 0 | J36: =VLOOKUP('9. Adj Network to Current WS'!$B36, '4. RRR Data'!$B$27:$M$49,12,0) -> 0 | P36: =IF(ISERROR('7. Current Wholesale'!$F$75*N36), "", '7. Current Wholesale'!$F$75*N36) -> 
B37: =IF('3. Rate Classes'!Q36=1,'3. Rate Classes'!C36, 0) -> 0 | D37: =IF(ISERROR(VLOOKUP($B37, '3. Rate Classes'!$C$24:$H$45,6,0)), "", VLOOKUP($B37, '3. Rate Classes'!$C$24:$H$45,6,0)) ->  | F37: =IF(ISERROR(VLOOKUP($B37,'3. Rate Classes'!$C$24:$N$45, 8,0)), "", VLOOKUP($B37,'3. Rate Classes'!$C$24:$N$45, 8,0)) ->  | H37: =VLOOKUP('9. Adj Network to Current WS'!$B37, '4. RRR Data'!$B$27:$M$49,11,0) -> 0 | J37: =VLOOKUP('9. Adj Network to Current WS'!$B37, '4. RRR Data'!$B$27:$M$49,12,0) -> 0 | P37: =IF(ISERROR('7. Current Wholesale'!$F$75*N37), "", '7. Current Wholesale'!$F$75*N37) -> 
B38: =IF('3. Rate Classes'!Q37=1,'3. Rate Classes'!C37, 0) -> 0 | D38: =IF(ISERROR(VLOOKUP($B38, '3. Rate Classes'!$C$24:$H$45,6,0)), "", VLOOKUP($B38, '3. Rate Classes'!$C$24:$H$45,6,0)) ->  | F38: =IF(ISERROR(VLOOKUP($B38,'3. Rate Classes'!$C$24:$N$45, 8,0)), "", VLOOKUP($B38,'3. Rate Classes'!$C$24:$N$45, 8,0)) ->  | H38: =VLOOKUP('9. Adj Network to Current WS'!$B38, '4. RRR Data'!$B$27:$M$49,11,0) -> 0 | J38: =VLOOKUP('9. Adj Network to Current WS'!$B38, '4. RRR Data'!$B$27:$M$49,12,0) -> 0 | P38: =IF(ISERROR('7. Current Wholesale'!$F$75*N38), "", '7. Current Wholesale'!$F$75*N38) -> 
B39: =IF('3. Rate Classes'!Q38=1,'3. Rate Classes'!C38, 0) -> 0 | D39: =IF(ISERROR(VLOOKUP($B39, '3. Rate Classes'!$C$24:$H$45,6,0)), "", VLOOKUP($B39, '3. Rate Classes'!$C$24:$H$45,6,0)) ->  | F39: =IF(ISERROR(VLOOKUP($B39,'3. Rate Classes'!$C$24:$N$45, 8,0)), "", VLOOKUP($B39,'3. Rate Classes'!$C$24:$N$45, 8,0)) ->  | H39: =VLOOKUP('9. Adj Network to Current WS'!$B39, '4. RRR Data'!$B$27:$M$49,11,0) -> 0 | J39: =VLOOKUP('9. Adj Network to Current WS'!$B39, '4. RRR Data'!$B$27:$M$49,12,0) -> 0 | L39: =IF(F39="", "", IF(D39="kWh", F39*H39, F39*J39)) ->  | P39: =IF(ISERROR('7. Current Wholesale'!$F$75*N39), "", '7. Current Wholesale'!$F$75*N39) -> 
B40: =IF('3. Rate Classes'!Q39=1,'3. Rate Classes'!C39, 0) -> 0 | D40: =IF(ISERROR(VLOOKUP($B40, '3. Rate Classes'!$C$24:$H$45,6,0)), "", VLOOKUP($B40, '3. Rate Classes'!$C$24:$H$45,6,0)) ->  | F40: =IF(ISERROR(VLOOKUP($B40,'3. Rate Classes'!$C$24:$N$45, 8,0)), "", VLOOKUP($B40,'3. Rate Classes'!$C$24:$N$45, 8,0)) ->  | H40: =VLOOKUP('9. Adj Network to Current WS'!$B40, '4. RRR Data'!$B$27:$M$49,11,0) -> 0 | J40: =VLOOKUP('9. Adj Network to Current WS'!$B40, '4. RRR Data'!$B$27:$M$49,12,0) -> 0 | P40: =IF(ISERROR('7. Current Wholesale'!$F$75*N40), "", '7. Current Wholesale'!$F$75*N40) -> 
B41: =IF('3. Rate Classes'!Q40=1,'3. Rate Classes'!C40, 0) -> 0 | D41: =IF(ISERROR(VLOOKUP($B41, '3. Rate Classes'!$C$24:$H$45,6,0)), "", VLOOKUP($B41, '3. Rate Classes'!$C$24:$H$45,6,0)) ->  | F41: =IF(ISERROR(VLOOKUP($B41,'3. Rate Classes'!$C$24:$N$45, 8,0)), "", VLOOKUP($B41,'3. Rate Classes'!$C$24:$N$45, 8,0)) ->  | H41: =VLOOKUP('9. Adj Network to Current WS'!$B41, '4. RRR Data'!$B$27:$M$49,11,0) -> 0 | J41: =VLOOKUP('9. Adj Network to Current WS'!$B41, '4. RRR Data'!$B$27:$M$49,12,0) -> 0 | P41: =IF(ISERROR('7. Current Wholesale'!$F$75*N41), "", '7. Current Wholesale'!$F$75*N41) -> 
B42: =IF('3. Rate Classes'!Q41=1,'3. Rate Classes'!C41, 0) -> 0 | D42: =IF(ISERROR(VLOOKUP($B42, '3. Rate Classes'!$C$24:$H$45,6,0)), "", VLOOKUP($B42, '3. Rate Classes'!$C$24:$H$45,6,0)) ->  | F42: =IF(ISERROR(VLOOKUP($B42,'3. Rate Classes'!$C$24:$N$45, 8,0)), "", VLOOKUP($B42,'3. Rate Classes'!$C$24:$N$45, 8,0)) ->  | H42: =VLOOKUP('9. Adj Network to Current WS'!$B42, '4. RRR Data'!$B$27:$M$49,11,0) -> 0 | J42: =VLOOKUP('9. Adj Network to Current WS'!$B42, '4. RRR Data'!$B$27:$M$49,12,0) -> 0 | P42: =IF(ISERROR('7. Current Wholesale'!$F$75*N42), "", '7. Current Wholesale'!$F$75*N42) -> 
B43: =IF('3. Rate Classes'!Q42=1,'3. Rate Classes'!C42, 0) -> 0 | D43: =IF(ISERROR(VLOOKUP($B43, '3. Rate Classes'!$C$24:$H$45,6,0)), "", VLOOKUP($B43, '3. Rate Classes'!$C$24:$H$45,6,0)) ->  | F43: =IF(ISERROR(VLOOKUP($B43,'3. Rate Classes'!$C$24:$N$45, 8,0)), "", VLOOKUP($B43,'3. Rate Classes'!$C$24:$N$45, 8,0)) ->  | H43: =VLOOKUP('9. Adj Network to Current WS'!$B43, '4. RRR Data'!$B$27:$M$49,11,0) -> 0 | J43: =VLOOKUP('9. Adj Network to Current WS'!$B43, '4. RRR Data'!$B$27:$M$49,12,0) -> 0 | P43: =IF(ISERROR('7. Current Wholesale'!$F$75*N43), "", '7. Current Wholesale'!$F$75*N43) -> 
B44: =IF('3. Rate Classes'!Q43=1,'3. Rate Classes'!C43, 0) -> 0 | D44: =IF(ISERROR(VLOOKUP($B44, '3. Rate Classes'!$C$24:$H$45,6,0)), "", VLOOKUP($B44, '3. Rate Classes'!$C$24:$H$45,6,0)) ->  | F44: =IF(ISERROR(VLOOKUP($B44,'3. Rate Classes'!$C$24:$N$45, 8,0)), "", VLOOKUP($B44,'3. Rate Classes'!$C$24:$N$45, 8,0)) ->  | H44: =VLOOKUP('9. Adj Network to Current WS'!$B44, '4. RRR Data'!$B$27:$M$49,11,0) -> 0 | J44: =VLOOKUP('9. Adj Network to Current WS'!$B44, '4. RRR Data'!$B$27:$M$49,12,0) -> 0 | P44: =IF(ISERROR('7. Current Wholesale'!$F$75*N44), "", '7. Current Wholesale'!$F$75*N44) -> 
B45: =IF('3. Rate Classes'!Q44=1,'3. Rate Classes'!C44, 0) -> 0 | D45: =IF(ISERROR(VLOOKUP($B45, '3. Rate Classes'!$C$24:$H$45,6,0)), "", VLOOKUP($B45, '3. Rate Classes'!$C$24:$H$45,6,0)) ->  | F45: =IF(ISERROR(VLOOKUP($B45,'3. Rate Classes'!$C$24:$N$45, 8,0)), "", VLOOKUP($B45,'3. Rate Classes'!$C$24:$N$45, 8,0)) ->  | H45: =VLOOKUP('9. Adj Network to Current WS'!$B45, '4. RRR Data'!$B$27:$M$49,11,0) -> 0 | J45: =VLOOKUP('9. Adj Network to Current WS'!$B45, '4. RRR Data'!$B$27:$M$49,12,0) -> 0 | P45: =IF(ISERROR('7. Current Wholesale'!$F$75*N45), "", '7. Current Wholesale'!$F$75*N45) -> 
B46: =IF('3. Rate Classes'!Q45=1,'3. Rate Classes'!C45, 0) -> 0 | D46: =IF(ISERROR(VLOOKUP($B46, '3. Rate Classes'!$C$24:$H$45,6,0)), "", VLOOKUP($B46, '3. Rate Classes'!$C$24:$H$45,6,0)) ->  | F46: =IF(ISERROR(VLOOKUP($B46,'3. Rate Classes'!$C$24:$N$45, 8,0)), "", VLOOKUP($B46,'3. Rate Classes'!$C$24:$N$45, 8,0)) ->  | H46: =VLOOKUP('9. Adj Network to Current WS'!$B46, '4. RRR Data'!$B$27:$M$49,11,0) -> 0 | J46: =VLOOKUP('9. Adj Network to Current WS'!$B46, '4. RRR Data'!$B$27:$M$49,12,0) -> 0 | P46: =IF(ISERROR('7. Current Wholesale'!$F$75*N46), "", '7. Current Wholesale'!$F$75*N46) -> 
L49: =SUM(L25:L46) -> 2708597.686

Sheet 10. Adj Conn. to Current WS
B13: The purpose of this sheet is to re-align the current RTS Connection Rates to recover current wholesale connection costs.
B22: Rate Class | D22: Unit | F22: Current RTSR-Connection | H22: Loss Adjusted Billed kWh | J22: Loss Adjusted Billed kW | L22: Billed Amount | N22: Billed Amount % | P22: Current Wholesale Billing | R22: Proposed RTSR Connection
B25: =IF('3. Rate Classes'!Q24=1,'3. Rate Classes'!C24, 0) -> Residential | D25: =IF(ISERROR(VLOOKUP($B25, '3. Rate Classes'!$C$24:$H$45,6,0)), "", VLOOKUP($B25, '3. Rate Classes'!$C$24:$H$45,6,0)) -> kWh | F25: =IF(ISERROR(VLOOKUP($B25,'3. Rate Classes'!$C$24:$N$45, 11,0)), "", VLOOKUP($B25,'3. Rate Classes'!$C$24:$N$45, 11,0)) -> 0.004 | H25: =VLOOKUP('9. Adj Network to Current WS'!$B25, '4. RRR Data'!$B$27:$M$49,11,0) -> 147654537.5 | J25: =VLOOKUP('9. Adj Network to Current WS'!$B25, '4. RRR Data'!$B$27:$M$49,12,0) -> 0 | L25: =IF(F25="", "", IF(D25="kWh", F25*H25, F25*J25)) -> 590618.1501 | N25: =IF(ISERROR(L25/$L$49), "", L25/$L$49) -> 0.3694954812 | P25: =IF(ISERROR('7. Current Wholesale'!$P$75*N25), "", '7. Current Wholesale'!$P$75*N25) -> 740905.7101 | R25: =IF(D25="","",IF(D25="kWh",IF(H25<>0,P25/H25,),IF(J25<>0,P25/J25,0))) -> 0.005017832317
B26: =IF('3. Rate Classes'!Q25=1,'3. Rate Classes'!C25, 0) -> General Service Less Than 50 kW | D26: =IF(ISERROR(VLOOKUP($B26, '3. Rate Classes'!$C$24:$H$45,6,0)), "", VLOOKUP($B26, '3. Rate Classes'!$C$24:$H$45,6,0)) -> kWh | F26: =IF(ISERROR(VLOOKUP($B26,'3. Rate Classes'!$C$24:$N$45, 11,0)), "", VLOOKUP($B26,'3. Rate Classes'!$C$24:$N$45, 11,0)) -> 0.0036 | H26: =VLOOKUP('9. Adj Network to Current WS'!$B26, '4. RRR Data'!$B$27:$M$49,11,0) -> 51030462.68 | J26: =VLOOKUP('9. Adj Network to Current WS'!$B26, '4. RRR Data'!$B$27:$M$49,12,0) -> 0 | L26: 183709.6656 | N26: 0.1149302494 | P26: =IF(ISERROR('7. Current Wholesale'!$P$75*N26), "", '7. Current Wholesale'!$P$75*N26) -> 230456.0743 | R26: 0.004516049085
B27: =IF('3. Rate Classes'!Q26=1,'3. Rate Classes'!C26, 0) -> General Service 50 to 999 kW | D27: =IF(ISERROR(VLOOKUP($B27, '3. Rate Classes'!$C$24:$H$45,6,0)), "", VLOOKUP($B27, '3. Rate Classes'!$C$24:$H$45,6,0)) -> kW | F27: =IF(ISERROR(VLOOKUP($B27,'3. Rate Classes'!$C$24:$N$45, 11,0)), "", VLOOKUP($B27,'3. Rate Classes'!$C$24:$N$45, 11,0)) -> 1.2953 | H27: =VLOOKUP('9. Adj Network to Current WS'!$B27, '4. RRR Data'!$B$27:$M$49,11,0) -> 76414560 | J27: =VLOOKUP('9. Adj Network to Current WS'!$B27, '4. RRR Data'!$B$27:$M$49,12,0) -> 223584 | L27: 289608.3552 | N27: 0.1811813243 | P27: =IF(ISERROR('7. Current Wholesale'!$P$75*N27), "", '7. Current Wholesale'!$P$75*N27) -> 363301.541 | R27: 1.62489955
B28: =IF('3. Rate Classes'!Q27=1,'3. Rate Classes'!C27, 0) -> General Service 1,000 to 4,999 kW | D28: =IF(ISERROR(VLOOKUP($B28, '3. Rate Classes'!$C$24:$H$45,6,0)), "", VLOOKUP($B28, '3. Rate Classes'!$C$24:$H$45,6,0)) -> kW | F28: =IF(ISERROR(VLOOKUP($B28,'3. Rate Classes'!$C$24:$N$45, 11,0)), "", VLOOKUP($B28,'3. Rate Classes'!$C$24:$N$45, 11,0)) -> 1.3929 | H28: =VLOOKUP('9. Adj Network to Current WS'!$B28, '4. RRR Data'!$B$27:$M$49,11,0) -> 99303972 | J28: =VLOOKUP('9. Adj Network to Current WS'!$B28, '4. RRR Data'!$B$27:$M$49,12,0) -> 168548 | L28: 234770.5092 | N28: 0.1468743252 | P28: =IF(ISERROR('7. Current Wholesale'!$P$75*N28), "", '7. Current Wholesale'!$P$75*N28) -> 294509.762 | R28: 1.747334659
B29: =IF('3. Rate Classes'!Q28=1,'3. Rate Classes'!C28, 0) -> Large Use | D29: =IF(ISERROR(VLOOKUP($B29, '3. Rate Classes'!$C$24:$H$45,6,0)), "", VLOOKUP($B29, '3. Rate Classes'!$C$24:$H$45,6,0)) -> kW | F29: =IF(ISERROR(VLOOKUP($B29,'3. Rate Classes'!$C$24:$N$45, 11,0)), "", VLOOKUP($B29,'3. Rate Classes'!$C$24:$N$45, 11,0)) -> 1.58 | H29: =VLOOKUP('9. Adj Network to Current WS'!$B29, '4. RRR Data'!$B$27:$M$49,11,0) -> 95335410 | J29: =VLOOKUP('9. Adj Network to Current WS'!$B29, '4. RRR Data'!$B$27:$M$49,12,0) -> 159576 | L29: 252130.08 | N29: 0.1577346128 | P29: =IF(ISERROR('7. Current Wholesale'!$P$75*N29), "", '7. Current Wholesale'!$P$75*N29) -> 316286.6159 | R29: 1.982043765
B30: =IF('3. Rate Classes'!Q29=1,'3. Rate Classes'!C29, 0) -> Unmetered Scattered Load | D30: =IF(ISERROR(VLOOKUP($B30, '3. Rate Classes'!$C$24:$H$45,6,0)), "", VLOOKUP($B30, '3. Rate Classes'!$C$24:$H$45,6,0)) -> kWh | F30: =IF(ISERROR(VLOOKUP($B30,'3. Rate Classes'!$C$24:$N$45, 11,0)), "", VLOOKUP($B30,'3. Rate Classes'!$C$24:$N$45, 11,0)) -> 0.0036 | H30: =VLOOKUP('9. Adj Network to Current WS'!$B30, '4. RRR Data'!$B$27:$M$49,11,0) -> 634129.4747 | J30: =VLOOKUP('9. Adj Network to Current WS'!$B30, '4. RRR Data'!$B$27:$M$49,12,0) -> 0 | L30: 2282.866109 | N30: 0.001428179461 | P30: =IF(ISERROR('7. Current Wholesale'!$P$75*N30), "", '7. Current Wholesale'!$P$75*N30) -> 2863.759834 | R30: 0.004516049085
B31: =IF('3. Rate Classes'!Q30=1,'3. Rate Classes'!C30, 0) -> Sentinel Lighting | D31: =IF(ISERROR(VLOOKUP($B31, '3. Rate Classes'!$C$24:$H$45,6,0)), "", VLOOKUP($B31, '3. Rate Classes'!$C$24:$H$45,6,0)) -> kW | F31: =IF(ISERROR(VLOOKUP($B31,'3. Rate Classes'!$C$24:$N$45, 11,0)), "", VLOOKUP($B31,'3. Rate Classes'!$C$24:$N$45, 11,0)) -> 1.0003 | H31: =VLOOKUP('9. Adj Network to Current WS'!$B31, '4. RRR Data'!$B$27:$M$49,11,0) -> 54410 | J31: =VLOOKUP('9. Adj Network to Current WS'!$B31, '4. RRR Data'!$B$27:$M$49,12,0) -> 18 | L31: 18.0054 | N31: 1.126432355e-05 | P31: =IF(ISERROR('7. Current Wholesale'!$P$75*N31), "", '7. Current Wholesale'!$P$75*N31) -> 22.5870195 | R31: 1.254834417
B32: =IF('3. Rate Classes'!Q31=1,'3. Rate Classes'!C31, 0) -> Street Lighting | D32: =IF(ISERROR(VLOOKUP($B32, '3. Rate Classes'!$C$24:$H$45,6,0)), "", VLOOKUP($B32, '3. Rate Classes'!$C$24:$H$45,6,0)) -> kW | F32: =IF(ISERROR(VLOOKUP($B32,'3. Rate Classes'!$C$24:$N$45, 11,0)), "", VLOOKUP($B32,'3. Rate Classes'!$C$24:$N$45, 11,0)) -> 1.6533 | H32: =VLOOKUP('9. Adj Network to Current WS'!$B32, '4. RRR Data'!$B$27:$M$49,11,0) -> 4189868 | J32: =VLOOKUP('9. Adj Network to Current WS'!$B32, '4. RRR Data'!$B$27:$M$49,12,0) -> 920 | L32: 1521.036 | N32: 0.0009515723969 | P32: =IF(ISERROR('7. Current Wholesale'!$P$75*N32), "", '7. Current Wholesale'!$P$75*N32) -> 1908.075899 | R32: 2.073995542
B33: =IF('3. Rate Classes'!Q32=1,'3. Rate Classes'!C32, 0) -> Embedded Distributor | D33: =IF(ISERROR(VLOOKUP($B33, '3. Rate Classes'!$C$24:$H$45,6,0)), "", VLOOKUP($B33, '3. Rate Classes'!$C$24:$H$45,6,0)) -> kW | F33: =IF(ISERROR(VLOOKUP($B33,'3. Rate Classes'!$C$24:$N$45, 11,0)), "", VLOOKUP($B33,'3. Rate Classes'!$C$24:$N$45, 11,0)) -> 1.8369 | H33: =VLOOKUP('9. Adj Network to Current WS'!$B33, '4. RRR Data'!$B$27:$M$49,11,0) -> 17400000 | J33: =VLOOKUP('9. Adj Network to Current WS'!$B33, '4. RRR Data'!$B$27:$M$49,12,0) -> 23837 | L33: 43786.1853 | N33: 0.02739299089 | P33: =IF(ISERROR('7. Current Wholesale'!$P$75*N33), "", '7. Current Wholesale'!$P$75*N33) -> 54927.93391 | R33: 2.304314046
B34: =IF('3. Rate Classes'!Q33=1,'3. Rate Classes'!C33, 0) -> 0 | D34: =IF(ISERROR(VLOOKUP($B34, '3. Rate Classes'!$C$24:$H$45,6,0)), "", VLOOKUP($B34, '3. Rate Classes'!$C$24:$H$45,6,0)) ->  | F34: =IF(ISERROR(VLOOKUP($B34,'3. Rate Classes'!$C$24:$N$45, 11,0)), "", VLOOKUP($B34,'3. Rate Classes'!$C$24:$N$45, 11,0)) ->  | H34: =VLOOKUP('9. Adj Network to Current WS'!$B34, '4. RRR Data'!$B$27:$M$49,11,0) -> 0 | J34: =VLOOKUP('9. Adj Network to Current WS'!$B34, '4. RRR Data'!$B$27:$M$49,12,0) -> 0 | P34: =IF(ISERROR('7. Current Wholesale'!$P$75*N34), "", '7. Current Wholesale'!$P$75*N34) -> 
B35: =IF('3. Rate Classes'!Q34=1,'3. Rate Classes'!C34, 0) -> 0 | D35: =IF(ISERROR(VLOOKUP($B35, '3. Rate Classes'!$C$24:$H$45,6,0)), "", VLOOKUP($B35, '3. Rate Classes'!$C$24:$H$45,6,0)) ->  | F35: =IF(ISERROR(VLOOKUP($B35,'3. Rate Classes'!$C$24:$N$45, 11,0)), "", VLOOKUP($B35,'3. Rate Classes'!$C$24:$N$45, 11,0)) ->  | H35: =VLOOKUP('9. Adj Network to Current WS'!$B35, '4. RRR Data'!$B$27:$M$49,11,0) -> 0 | J35: =VLOOKUP('9. Adj Network to Current WS'!$B35, '4. RRR Data'!$B$27:$M$49,12,0) -> 0 | P35: =IF(ISERROR('7. Current Wholesale'!$P$75*N35), "", '7. Current Wholesale'!$P$75*N35) -> 
B36: =IF('3. Rate Classes'!Q35=1,'3. Rate Classes'!C35, 0) -> 0 | D36: =IF(ISERROR(VLOOKUP($B36, '3. Rate Classes'!$C$24:$H$45,6,0)), "", VLOOKUP($B36, '3. Rate Classes'!$C$24:$H$45,6,0)) ->  | F36: =IF(ISERROR(VLOOKUP($B36,'3. Rate Classes'!$C$24:$N$45, 11,0)), "", VLOOKUP($B36,'3. Rate Classes'!$C$24:$N$45, 11,0)) ->  | H36: =VLOOKUP('9. Adj Network to Current WS'!$B36, '4. RRR Data'!$B$27:$M$49,11,0) -> 0 | J36: =VLOOKUP('9. Adj Network to Current WS'!$B36, '4. RRR Data'!$B$27:$M$49,12,0) -> 0 | P36: =IF(ISERROR('7. Current Wholesale'!$P$75*N36), "", '7. Current Wholesale'!$P$75*N36) -> 
B37: =IF('3. Rate Classes'!Q36=1,'3. Rate Classes'!C36, 0) -> 0 | D37: =IF(ISERROR(VLOOKUP($B37, '3. Rate Classes'!$C$24:$H$45,6,0)), "", VLOOKUP($B37, '3. Rate Classes'!$C$24:$H$45,6,0)) ->  | F37: =IF(ISERROR(VLOOKUP($B37,'3. Rate Classes'!$C$24:$N$45, 11,0)), "", VLOOKUP($B37,'3. Rate Classes'!$C$24:$N$45, 11,0)) ->  | H37: =VLOOKUP('9. Adj Network to Current WS'!$B37, '4. RRR Data'!$B$27:$M$49,11,0) -> 0 | J37: =VLOOKUP('9. Adj Network to Current WS'!$B37, '4. RRR Data'!$B$27:$M$49,12,0) -> 0 | P37: =IF(ISERROR('7. Current Wholesale'!$P$75*N37), "", '7. Current Wholesale'!$P$75*N37) -> 
B38: =IF('3. Rate Classes'!Q37=1,'3. Rate Classes'!C37, 0) -> 0 | D38: =IF(ISERROR(VLOOKUP($B38, '3. Rate Classes'!$C$24:$H$45,6,0)), "", VLOOKUP($B38, '3. Rate Classes'!$C$24:$H$45,6,0)) ->  | F38: =IF(ISERROR(VLOOKUP($B38,'3. Rate Classes'!$C$24:$N$45, 11,0)), "", VLOOKUP($B38,'3. Rate Classes'!$C$24:$N$45, 11,0)) ->  | H38: =VLOOKUP('9. Adj Network to Current WS'!$B38, '4. RRR Data'!$B$27:$M$49,11,0) -> 0 | J38: =VLOOKUP('9. Adj Network to Current WS'!$B38, '4. RRR Data'!$B$27:$M$49,12,0) -> 0 | P38: =IF(ISERROR('7. Current Wholesale'!$P$75*N38), "", '7. Current Wholesale'!$P$75*N38) -> 
B39: =IF('3. Rate Classes'!Q38=1,'3. Rate Classes'!C38, 0) -> 0 | D39: =IF(ISERROR(VLOOKUP($B39, '3. Rate Classes'!$C$24:$H$45,6,0)), "", VLOOKUP($B39, '3. Rate Classes'!$C$24:$H$45,6,0)) ->  | F39: =IF(ISERROR(VLOOKUP($B39,'3. Rate Classes'!$C$24:$N$45, 11,0)), "", VLOOKUP($B39,'3. Rate Classes'!$C$24:$N$45, 11,0)) ->  | H39: =VLOOKUP('9. Adj Network to Current WS'!$B39, '4. RRR Data'!$B$27:$M$49,11,0) -> 0 | J39: =VLOOKUP('9. Adj Network to Current WS'!$B39, '4. RRR Data'!$B$27:$M$49,12,0) -> 0 | P39: =IF(ISERROR('7. Current Wholesale'!$P$75*N39), "", '7. Current Wholesale'!$P$75*N39) -> 
B40: =IF('3. Rate Classes'!Q39=1,'3. Rate Classes'!C39, 0) -> 0 | D40: =IF(ISERROR(VLOOKUP($B40, '3. Rate Classes'!$C$24:$H$45,6,0)), "", VLOOKUP($B40, '3. Rate Classes'!$C$24:$H$45,6,0)) ->  | F40: =IF(ISERROR(VLOOKUP($B40,'3. Rate Classes'!$C$24:$N$45, 11,0)), "", VLOOKUP($B40,'3. Rate Classes'!$C$24:$N$45, 11,0)) ->  | H40: =VLOOKUP('9. Adj Network to Current WS'!$B40, '4. RRR Data'!$B$27:$M$49,11,0) -> 0 | J40: =VLOOKUP('9. Adj Network to Current WS'!$B40, '4. RRR Data'!$B$27:$M$49,12,0) -> 0 | P40: =IF(ISERROR('7. Current Wholesale'!$P$75*N40), "", '7. Current Wholesale'!$P$75*N40) -> 
B41: =IF('3. Rate Classes'!Q40=1,'3. Rate Classes'!C40, 0) -> 0 | D41: =IF(ISERROR(VLOOKUP($B41, '3. Rate Classes'!$C$24:$H$45,6,0)), "", VLOOKUP($B41, '3. Rate Classes'!$C$24:$H$45,6,0)) ->  | F41: =IF(ISERROR(VLOOKUP($B41,'3. Rate Classes'!$C$24:$N$45, 11,0)), "", VLOOKUP($B41,'3. Rate Classes'!$C$24:$N$45, 11,0)) ->  | H41: =VLOOKUP('9. Adj Network to Current WS'!$B41, '4. RRR Data'!$B$27:$M$49,11,0) -> 0 | J41: =VLOOKUP('9. Adj Network to Current WS'!$B41, '4. RRR Data'!$B$27:$M$49,12,0) -> 0 | P41: =IF(ISERROR('7. Current Wholesale'!$P$75*N41), "", '7. Current Wholesale'!$P$75*N41) -> 
B42: =IF('3. Rate Classes'!Q41=1,'3. Rate Classes'!C41, 0) -> 0 | D42: =IF(ISERROR(VLOOKUP($B42, '3. Rate Classes'!$C$24:$H$45,6,0)), "", VLOOKUP($B42, '3. Rate Classes'!$C$24:$H$45,6,0)) ->  | F42: =IF(ISERROR(VLOOKUP($B42,'3. Rate Classes'!$C$24:$N$45, 11,0)), "", VLOOKUP($B42,'3. Rate Classes'!$C$24:$N$45, 11,0)) ->  | H42: =VLOOKUP('9. Adj Network to Current WS'!$B42, '4. RRR Data'!$B$27:$M$49,11,0) -> 0 | J42: =VLOOKUP('9. Adj Network to Current WS'!$B42, '4. RRR Data'!$B$27:$M$49,12,0) -> 0 | P42: =IF(ISERROR('7. Current Wholesale'!$P$75*N42), "", '7. Current Wholesale'!$P$75*N42) -> 
B43: =IF('3. Rate Classes'!Q42=1,'3. Rate Classes'!C42, 0) -> 0 | D43: =IF(ISERROR(VLOOKUP($B43, '3. Rate Classes'!$C$24:$H$45,6,0)), "", VLOOKUP($B43, '3. Rate Classes'!$C$24:$H$45,6,0)) ->  | F43: =IF(ISERROR(VLOOKUP($B43,'3. Rate Classes'!$C$24:$N$45, 11,0)), "", VLOOKUP($B43,'3. Rate Classes'!$C$24:$N$45, 11,0)) ->  | H43: =VLOOKUP('9. Adj Network to Current WS'!$B43, '4. RRR Data'!$B$27:$M$49,11,0) -> 0 | J43: =VLOOKUP('9. Adj Network to Current WS'!$B43, '4. RRR Data'!$B$27:$M$49,12,0) -> 0 | P43: =IF(ISERROR('7. Current Wholesale'!$P$75*N43), "", '7. Current Wholesale'!$P$75*N43) -> 
B44: =IF('3. Rate Classes'!Q43=1,'3. Rate Classes'!C43, 0) -> 0 | D44: =IF(ISERROR(VLOOKUP($B44, '3. Rate Classes'!$C$24:$H$45,6,0)), "", VLOOKUP($B44, '3. Rate Classes'!$C$24:$H$45,6,0)) ->  | F44: =IF(ISERROR(VLOOKUP($B44,'3. Rate Classes'!$C$24:$N$45, 11,0)), "", VLOOKUP($B44,'3. Rate Classes'!$C$24:$N$45, 11,0)) ->  | H44: =VLOOKUP('9. Adj Network to Current WS'!$B44, '4. RRR Data'!$B$27:$M$49,11,0) -> 0 | J44: =VLOOKUP('9. Adj Network to Current WS'!$B44, '4. RRR Data'!$B$27:$M$49,12,0) -> 0 | P44: =IF(ISERROR('7. Current Wholesale'!$P$75*N44), "", '7. Current Wholesale'!$P$75*N44) -> 
B45: =IF('3. Rate Classes'!Q44=1,'3. Rate Classes'!C44, 0) -> 0 | D45: =IF(ISERROR(VLOOKUP($B45, '3. Rate Classes'!$C$24:$H$45,6,0)), "", VLOOKUP($B45, '3. Rate Classes'!$C$24:$H$45,6,0)) ->  | F45: =IF(ISERROR(VLOOKUP($B45,'3. Rate Classes'!$C$24:$N$45, 11,0)), "", VLOOKUP($B45,'3. Rate Classes'!$C$24:$N$45, 11,0)) ->  | H45: =VLOOKUP('9. Adj Network to Current WS'!$B45, '4. RRR Data'!$B$27:$M$49,11,0) -> 0 | J45: =VLOOKUP('9. Adj Network to Current WS'!$B45, '4. RRR Data'!$B$27:$M$49,12,0) -> 0 | P45: =IF(ISERROR('7. Current Wholesale'!$P$75*N45), "", '7. Current Wholesale'!$P$75*N45) -> 
B46: =IF('3. Rate Classes'!Q45=1,'3. Rate Classes'!C45, 0) -> 0 | D46: =IF(ISERROR(VLOOKUP($B46, '3. Rate Classes'!$C$24:$H$45,6,0)), "", VLOOKUP($B46, '3. Rate Classes'!$C$24:$H$45,6,0)) ->  | F46: =IF(ISERROR(VLOOKUP($B46,'3. Rate Classes'!$C$24:$N$45, 11,0)), "", VLOOKUP($B46,'3. Rate Classes'!$C$24:$N$45, 11,0)) ->  | H46: =VLOOKUP('9. Adj Network to Current WS'!$B46, '4. RRR Data'!$B$27:$M$49,11,0) -> 0 | J46: =VLOOKUP('9. Adj Network to Current WS'!$B46, '4. RRR Data'!$B$27:$M$49,12,0) -> 0 | P46: =IF(ISERROR('7. Current Wholesale'!$P$75*N46), "", '7. Current Wholesale'!$P$75*N46) -> 
L49: =SUM(L25:L46) -> 1598444.853

Sheet 11. Adj Network to Forecast WS
B13: The purpose of this sheet is to update the re-align RTS Network Rates to recover forecast wholesale network costs.
B22: Rate Class | D22: Unit | F22: Adjusted RTSR-Network | H22: Loss Adjusted Billed kWh | J22: Loss Adjusted Billed kW | L22: Billed Amount | N22: Billed Amount % | P22: Forecast Wholesale Billing | R22: Proposed RTSR Network
B25: =IF('3. Rate Classes'!Q24=1,'3. Rate Classes'!C24, 0) -> Residential | D25: =IF(ISERROR(VLOOKUP($B25, '3. Rate Classes'!$C$24:$H$45,6,0)), "", VLOOKUP($B25, '3. Rate Classes'!$C$24:$H$45,6,0)) -> kWh | F25: =VLOOKUP($B25, '9. Adj Network to Current WS'!$B$25:$R$47, 17,0) -> 0.005434364123 | H25: =VLOOKUP('9. Adj Network to Current WS'!$B25, '4. RRR Data'!$B$27:$M$49,11,0) -> 147654537.5 | J25: =VLOOKUP('9. Adj Network to Current WS'!$B25, '4. RRR Data'!$B$27:$M$49,12,0) -> 0 | L25: =IF(F25="", "", IF(D25="kWh", F25*H25, F25*J25)) -> 802408.5213 | N25: =IF(ISERROR(L25/$L$49), "", L25/$L$49) -> 0.3216283378 | P25: =IF(ISERROR('8. Forecast Wholesale'!$F$75*N25), "", '8. Forecast Wholesale'!$F$75*N25) -> 804565.4638 | R25: =IF(D25="","",IF(D25="kWh",IF(H25<>0,P25/H25,),IF(J25<>0,P25/J25,0))) -> 0.005448972157
B26: =IF('3. Rate Classes'!Q25=1,'3. Rate Classes'!C25, 0) -> General Service Less Than 50 kW | D26: =IF(ISERROR(VLOOKUP($B26, '3. Rate Classes'!$C$24:$H$45,6,0)), "", VLOOKUP($B26, '3. Rate Classes'!$C$24:$H$45,6,0)) -> kWh | F26: =VLOOKUP($B26, '9. Adj Network to Current WS'!$B$25:$R$47, 17,0) -> 0.00497382479 | H26: =VLOOKUP('9. Adj Network to Current WS'!$B26, '4. RRR Data'!$B$27:$M$49,11,0) -> 51030462.68 | J26: =VLOOKUP('9. Adj Network to Current WS'!$B26, '4. RRR Data'!$B$27:$M$49,12,0) -> 0 | L26: 253816.5803 | N26: 0.1017369615 | P26: =IF(ISERROR('8. Forecast Wholesale'!$F$75*N26), "", '8. Forecast Wholesale'!$F$75*N26) -> 254498.8609 | R26: 0.004987194856
B27: =IF('3. Rate Classes'!Q26=1,'3. Rate Classes'!C26, 0) -> General Service 50 to 999 kW | D27: =IF(ISERROR(VLOOKUP($B27, '3. Rate Classes'!$C$24:$H$45,6,0)), "", VLOOKUP($B27, '3. Rate Classes'!$C$24:$H$45,6,0)) -> kW | F27: =VLOOKUP($B27, '9. Adj Network to Current WS'!$B$25:$R$47, 17,0) -> 2.263550819 | H27: =VLOOKUP('9. Adj Network to Current WS'!$B27, '4. RRR Data'!$B$27:$M$49,11,0) -> 76414560 | J27: =VLOOKUP('9. Adj Network to Current WS'!$B27, '4. RRR Data'!$B$27:$M$49,12,0) -> 223584 | L27: 506093.7463 | N27: 0.2028568816 | P27: =IF(ISERROR('8. Forecast Wholesale'!$F$75*N27), "", '8. Forecast Wholesale'!$F$75*N27) -> 507454.1695 | R27: 2.269635437
B28: =IF('3. Rate Classes'!Q27=1,'3. Rate Classes'!C27, 0) -> General Service 1,000 to 4,999 kW | D28: =IF(ISERROR(VLOOKUP($B28, '3. Rate Classes'!$C$24:$H$45,6,0)), "", VLOOKUP($B28, '3. Rate Classes'!$C$24:$H$45,6,0)) -> kW | F28: =VLOOKUP($B28, '9. Adj Network to Current WS'!$B$25:$R$47, 17,0) -> 2.458543172 | H28: =VLOOKUP('9. Adj Network to Current WS'!$B28, '4. RRR Data'!$B$27:$M$49,11,0) -> 99303972 | J28: =VLOOKUP('9. Adj Network to Current WS'!$B28, '4. RRR Data'!$B$27:$M$49,12,0) -> 168548 | L28: 414382.5346 | N28: 0.1660963989 | P28: =IF(ISERROR('8. Forecast Wholesale'!$F$75*N28), "", '8. Forecast Wholesale'!$F$75*N28) -> 415496.4302 | R28: 2.465151946
B29: =IF('3. Rate Classes'!Q28=1,'3. Rate Classes'!C28, 0) -> Large Use | D29: =IF(ISERROR(VLOOKUP($B29, '3. Rate Classes'!$C$24:$H$45,6,0)), "", VLOOKUP($B29, '3. Rate Classes'!$C$24:$H$45,6,0)) -> kW | F29: =VLOOKUP($B29, '9. Adj Network to Current WS'!$B$25:$R$47, 17,0) -> 2.725563877 | H29: =VLOOKUP('9. Adj Network to Current WS'!$B29, '4. RRR Data'!$B$27:$M$49,11,0) -> 95335410 | J29: =VLOOKUP('9. Adj Network to Current WS'!$B29, '4. RRR Data'!$B$27:$M$49,12,0) -> 159576 | L29: 434934.5813 | N29: 0.1743342483 | P29: =IF(ISERROR('8. Forecast Wholesale'!$F$75*N29), "", '8. Forecast Wholesale'!$F$75*N29) -> 436103.7225 | R29: 2.732890425
B30: =IF('3. Rate Classes'!Q29=1,'3. Rate Classes'!C29, 0) -> Unmetered Scattered Load | D30: =IF(ISERROR(VLOOKUP($B30, '3. Rate Classes'!$C$24:$H$45,6,0)), "", VLOOKUP($B30, '3. Rate Classes'!$C$24:$H$45,6,0)) -> kWh | F30: =VLOOKUP($B30, '9. Adj Network to Current WS'!$B$25:$R$47, 17,0) -> 0.00497382479 | H30: =VLOOKUP('9. Adj Network to Current WS'!$B30, '4. RRR Data'!$B$27:$M$49,11,0) -> 634129.4747 | J30: =VLOOKUP('9. Adj Network to Current WS'!$B30, '4. RRR Data'!$B$27:$M$49,12,0) -> 0 | L30: 3154.048902 | N30: 0.001264233216 | P30: =IF(ISERROR('8. Forecast Wholesale'!$F$75*N30), "", '8. Forecast Wholesale'!$F$75*N30) -> 3162.527254 | R30: 0.004987194856
B31: =IF('3. Rate Classes'!Q30=1,'3. Rate Classes'!C30, 0) -> Sentinel Lighting | D31: =IF(ISERROR(VLOOKUP($B31, '3. Rate Classes'!$C$24:$H$45,6,0)), "", VLOOKUP($B31, '3. Rate Classes'!$C$24:$H$45,6,0)) -> kW | F31: =VLOOKUP($B31, '9. Adj Network to Current WS'!$B$25:$R$47, 17,0) -> 1.748115198 | H31: =VLOOKUP('9. Adj Network to Current WS'!$B31, '4. RRR Data'!$B$27:$M$49,11,0) -> 54410 | J31: =VLOOKUP('9. Adj Network to Current WS'!$B31, '4. RRR Data'!$B$27:$M$49,12,0) -> 18 | L31: 31.46607357 | N31: 1.261250432e-05 | P31: =IF(ISERROR('8. Forecast Wholesale'!$F$75*N31), "", '8. Forecast Wholesale'!$F$75*N31) -> 31.55065706 | R31: 1.752814281
B32: =IF('3. Rate Classes'!Q31=1,'3. Rate Classes'!C31, 0) -> Street Lighting | D32: =IF(ISERROR(VLOOKUP($B32, '3. Rate Classes'!$C$24:$H$45,6,0)), "", VLOOKUP($B32, '3. Rate Classes'!$C$24:$H$45,6,0)) -> kW | F32: =VLOOKUP($B32, '9. Adj Network to Current WS'!$B$25:$R$47, 17,0) -> 1.748115198 | H32: =VLOOKUP('9. Adj Network to Current WS'!$B32, '4. RRR Data'!$B$27:$M$49,11,0) -> 4189868 | J32: =VLOOKUP('9. Adj Network to Current WS'!$B32, '4. RRR Data'!$B$27:$M$49,12,0) -> 920 | L32: 1608.265982 | N32: 0.0006446391095 | P32: =IF(ISERROR('8. Forecast Wholesale'!$F$75*N32), "", '8. Forecast Wholesale'!$F$75*N32) -> 1612.589138 | R32: 1.752814281
B33: =IF('3. Rate Classes'!Q32=1,'3. Rate Classes'!C32, 0) -> Embedded Distributor | D33: =IF(ISERROR(VLOOKUP($B33, '3. Rate Classes'!$C$24:$H$45,6,0)), "", VLOOKUP($B33, '3. Rate Classes'!$C$24:$H$45,6,0)) -> kW | F33: =VLOOKUP($B33, '9. Adj Network to Current WS'!$B$25:$R$47, 17,0) -> 3.289079804 | H33: =VLOOKUP('9. Adj Network to Current WS'!$B33, '4. RRR Data'!$B$27:$M$49,11,0) -> 17400000 | J33: =VLOOKUP('9. Adj Network to Current WS'!$B33, '4. RRR Data'!$B$27:$M$49,12,0) -> 23837 | L33: 78401.7953 | N33: 0.03142568708 | P33: =IF(ISERROR('8. Forecast Wholesale'!$F$75*N33), "", '8. Forecast Wholesale'!$F$75*N33) -> 78612.54601 | R33: 3.297921131
B34: =IF('3. Rate Classes'!Q33=1,'3. Rate Classes'!C33, 0) -> 0 | D34: =IF(ISERROR(VLOOKUP($B34, '3. Rate Classes'!$C$24:$H$45,6,0)), "", VLOOKUP($B34, '3. Rate Classes'!$C$24:$H$45,6,0)) ->  | F34: =VLOOKUP($B34, '9. Adj Network to Current WS'!$B$25:$R$47, 17,0) ->  | H34: =VLOOKUP('9. Adj Network to Current WS'!$B34, '4. RRR Data'!$B$27:$M$49,11,0) -> 0 | J34: =VLOOKUP('9. Adj Network to Current WS'!$B34, '4. RRR Data'!$B$27:$M$49,12,0) -> 0 | P34: =IF(ISERROR('8. Forecast Wholesale'!$F$75*N34), "", '8. Forecast Wholesale'!$F$75*N34) -> 
B35: =IF('3. Rate Classes'!Q34=1,'3. Rate Classes'!C34, 0) -> 0 | D35: =IF(ISERROR(VLOOKUP($B35, '3. Rate Classes'!$C$24:$H$45,6,0)), "", VLOOKUP($B35, '3. Rate Classes'!$C$24:$H$45,6,0)) ->  | F35: =VLOOKUP($B35, '9. Adj Network to Current WS'!$B$25:$R$47, 17,0) ->  | H35: =VLOOKUP('9. Adj Network to Current WS'!$B35, '4. RRR Data'!$B$27:$M$49,11,0) -> 0 | J35: =VLOOKUP('9. Adj Network to Current WS'!$B35, '4. RRR Data'!$B$27:$M$49,12,0) -> 0 | P35: =IF(ISERROR('8. Forecast Wholesale'!$F$75*N35), "", '8. Forecast Wholesale'!$F$75*N35) -> 
B36: =IF('3. Rate Classes'!Q35=1,'3. Rate Classes'!C35, 0) -> 0 | D36: =IF(ISERROR(VLOOKUP($B36, '3. Rate Classes'!$C$24:$H$45,6,0)), "", VLOOKUP($B36, '3. Rate Classes'!$C$24:$H$45,6,0)) ->  | F36: =VLOOKUP($B36, '9. Adj Network to Current WS'!$B$25:$R$47, 17,0) ->  | H36: =VLOOKUP('9. Adj Network to Current WS'!$B36, '4. RRR Data'!$B$27:$M$49,11,0) -> 0 | J36: =VLOOKUP('9. Adj Network to Current WS'!$B36, '4. RRR Data'!$B$27:$M$49,12,0) -> 0 | P36: =IF(ISERROR('8. Forecast Wholesale'!$F$75*N36), "", '8. Forecast Wholesale'!$F$75*N36) -> 
B37: =IF('3. Rate Classes'!Q36=1,'3. Rate Classes'!C36, 0) -> 0 | D37: =IF(ISERROR(VLOOKUP($B37, '3. Rate Classes'!$C$24:$H$45,6,0)), "", VLOOKUP($B37, '3. Rate Classes'!$C$24:$H$45,6,0)) ->  | F37: =VLOOKUP($B37, '9. Adj Network to Current WS'!$B$25:$R$47, 17,0) ->  | H37: =VLOOKUP('9. Adj Network to Current WS'!$B37, '4. RRR Data'!$B$27:$M$49,11,0) -> 0 | J37: =VLOOKUP('9. Adj Network to Current WS'!$B37, '4. RRR Data'!$B$27:$M$49,12,0) -> 0 | P37: =IF(ISERROR('8. Forecast Wholesale'!$F$75*N37), "", '8. Forecast Wholesale'!$F$75*N37) -> 
B38: =IF('3. Rate Classes'!Q37=1,'3. Rate Classes'!C37, 0) -> 0 | D38: =IF(ISERROR(VLOOKUP($B38, '3. Rate Classes'!$C$24:$H$45,6,0)), "", VLOOKUP($B38, '3. Rate Classes'!$C$24:$H$45,6,0)) ->  | F38: =VLOOKUP($B38, '9. Adj Network to Current WS'!$B$25:$R$47, 17,0) ->  | H38: =VLOOKUP('9. Adj Network to Current WS'!$B38, '4. RRR Data'!$B$27:$M$49,11,0) -> 0 | J38: =VLOOKUP('9. Adj Network to Current WS'!$B38, '4. RRR Data'!$B$27:$M$49,12,0) -> 0 | P38: =IF(ISERROR('8. Forecast Wholesale'!$F$75*N38), "", '8. Forecast Wholesale'!$F$75*N38) -> 
B39: =IF('3. Rate Classes'!Q38=1,'3. Rate Classes'!C38, 0) -> 0 | D39: =IF(ISERROR(VLOOKUP($B39, '3. Rate Classes'!$C$24:$H$45,6,0)), "", VLOOKUP($B39, '3. Rate Classes'!$C$24:$H$45,6,0)) ->  | F39: =VLOOKUP($B39, '9. Adj Network to Current WS'!$B$25:$R$47, 17,0) ->  | H39: =VLOOKUP('9. Adj Network to Current WS'!$B39, '4. RRR Data'!$B$27:$M$49,11,0) -> 0 | J39: =VLOOKUP('9. Adj Network to Current WS'!$B39, '4. RRR Data'!$B$27:$M$49,12,0) -> 0 | P39: =IF(ISERROR('8. Forecast Wholesale'!$F$75*N39), "", '8. Forecast Wholesale'!$F$75*N39) -> 
B40: =IF('3. Rate Classes'!Q39=1,'3. Rate Classes'!C39, 0) -> 0 | D40: =IF(ISERROR(VLOOKUP($B40, '3. Rate Classes'!$C$24:$H$45,6,0)), "", VLOOKUP($B40, '3. Rate Classes'!$C$24:$H$45,6,0)) ->  | F40: =VLOOKUP($B40, '9. Adj Network to Current WS'!$B$25:$R$47, 17,0) ->  | H40: =VLOOKUP('9. Adj Network to Current WS'!$B40, '4. RRR Data'!$B$27:$M$49,11,0) -> 0 | J40: =VLOOKUP('9. Adj Network to Current WS'!$B40, '4. RRR Data'!$B$27:$M$49,12,0) -> 0 | P40: =IF(ISERROR('8. Forecast Wholesale'!$F$75*N40), "", '8. Forecast Wholesale'!$F$75*N40) -> 
B41: =IF('3. Rate Classes'!Q40=1,'3. Rate Classes'!C40, 0) -> 0 | D41: =IF(ISERROR(VLOOKUP($B41, '3. Rate Classes'!$C$24:$H$45,6,0)), "", VLOOKUP($B41, '3. Rate Classes'!$C$24:$H$45,6,0)) ->  | F41: =VLOOKUP($B41, '9. Adj Network to Current WS'!$B$25:$R$47, 17,0) ->  | H41: =VLOOKUP('9. Adj Network to Current WS'!$B41, '4. RRR Data'!$B$27:$M$49,11,0) -> 0 | J41: =VLOOKUP('9. Adj Network to Current WS'!$B41, '4. RRR Data'!$B$27:$M$49,12,0) -> 0 | P41: =IF(ISERROR('8. Forecast Wholesale'!$F$75*N41), "", '8. Forecast Wholesale'!$F$75*N41) -> 
B42: =IF('3. Rate Classes'!Q41=1,'3. Rate Classes'!C41, 0) -> 0 | D42: =IF(ISERROR(VLOOKUP($B42, '3. Rate Classes'!$C$24:$H$45,6,0)), "", VLOOKUP($B42, '3. Rate Classes'!$C$24:$H$45,6,0)) ->  | F42: =VLOOKUP($B42, '9. Adj Network to Current WS'!$B$25:$R$47, 17,0) ->  | H42: =VLOOKUP('9. Adj Network to Current WS'!$B42, '4. RRR Data'!$B$27:$M$49,11,0) -> 0 | J42: =VLOOKUP('9. Adj Network to Current WS'!$B42, '4. RRR Data'!$B$27:$M$49,12,0) -> 0 | P42: =IF(ISERROR('8. Forecast Wholesale'!$F$75*N42), "", '8. Forecast Wholesale'!$F$75*N42) -> 
B43: =IF('3. Rate Classes'!Q42=1,'3. Rate Classes'!C42, 0) -> 0 | D43: =IF(ISERROR(VLOOKUP($B43, '3. Rate Classes'!$C$24:$H$45,6,0)), "", VLOOKUP($B43, '3. Rate Classes'!$C$24:$H$45,6,0)) ->  | F43: =VLOOKUP($B43, '9. Adj Network to Current WS'!$B$25:$R$47, 17,0) ->  | H43: =VLOOKUP('9. Adj Network to Current WS'!$B43, '4. RRR Data'!$B$27:$M$49,11,0) -> 0 | J43: =VLOOKUP('9. Adj Network to Current WS'!$B43, '4. RRR Data'!$B$27:$M$49,12,0) -> 0 | P43: =IF(ISERROR('8. Forecast Wholesale'!$F$75*N43), "", '8. Forecast Wholesale'!$F$75*N43) -> 
B44: =IF('3. Rate Classes'!Q43=1,'3. Rate Classes'!C43, 0) -> 0 | D44: =IF(ISERROR(VLOOKUP($B44, '3. Rate Classes'!$C$24:$H$45,6,0)), "", VLOOKUP($B44, '3. Rate Classes'!$C$24:$H$45,6,0)) ->  | F44: =VLOOKUP($B44, '9. Adj Network to Current WS'!$B$25:$R$47, 17,0) ->  | H44: =VLOOKUP('9. Adj Network to Current WS'!$B44, '4. RRR Data'!$B$27:$M$49,11,0) -> 0 | J44: =VLOOKUP('9. Adj Network to Current WS'!$B44, '4. RRR Data'!$B$27:$M$49,12,0) -> 0 | P44: =IF(ISERROR('8. Forecast Wholesale'!$F$75*N44), "", '8. Forecast Wholesale'!$F$75*N44) -> 
B45: =IF('3. Rate Classes'!Q44=1,'3. Rate Classes'!C44, 0) -> 0 | D45: =IF(ISERROR(VLOOKUP($B45, '3. Rate Classes'!$C$24:$H$45,6,0)), "", VLOOKUP($B45, '3. Rate Classes'!$C$24:$H$45,6,0)) ->  | F45: =VLOOKUP($B45, '9. Adj Network to Current WS'!$B$25:$R$47, 17,0) ->  | H45: =VLOOKUP('9. Adj Network to Current WS'!$B45, '4. RRR Data'!$B$27:$M$49,11,0) -> 0 | J45: =VLOOKUP('9. Adj Network to Current WS'!$B45, '4. RRR Data'!$B$27:$M$49,12,0) -> 0 | P45: =IF(ISERROR('8. Forecast Wholesale'!$F$75*N45), "", '8. Forecast Wholesale'!$F$75*N45) -> 
B46: =IF('3. Rate Classes'!Q45=1,'3. Rate Classes'!C45, 0) -> 0 | D46: =IF(ISERROR(VLOOKUP($B46, '3. Rate Classes'!$C$24:$H$45,6,0)), "", VLOOKUP($B46, '3. Rate Classes'!$C$24:$H$45,6,0)) ->  | F46: =VLOOKUP($B46, '9. Adj Network to Current WS'!$B$25:$R$47, 17,0) ->  | H46: =VLOOKUP('9. Adj Network to Current WS'!$B46, '4. RRR Data'!$B$27:$M$49,11,0) -> 0 | J46: =VLOOKUP('9. Adj Network to Current WS'!$B46, '4. RRR Data'!$B$27:$M$49,12,0) -> 0 | P46: =IF(ISERROR('8. Forecast Wholesale'!$F$75*N46), "", '8. Forecast Wholesale'!$F$75*N46) -> 
L49: =SUM(L25:L46) -> 2494831.54

Sheet 12. Adj Conn. to Forecast WS
B13: The purpose of this sheet is to update the re-aligned RTS Connection Rates to recover forecast wholesale connection costs.
B19: Rate Class
B22: Rate Class | D22: Unit | F22: Adjusted RTSR-Connection | H22: Loss Adjusted Billed kWh | J22: Loss Adjusted Billed kW | L22: Billed Amount | N22: Billed Amount % | P22: Forecast Wholesale Billing | R22: Proposed RTSR Connection
B25: =IF('3. Rate Classes'!Q24=1,'3. Rate Classes'!C24, 0) -> Residential | D25: =IF(ISERROR(VLOOKUP($B25, '3. Rate Classes'!$C$24:$H$45,6,0)), "", VLOOKUP($B25, '3. Rate Classes'!$C$24:$H$45,6,0)) -> kWh | F25: =VLOOKUP($B25, '10. Adj Conn. to Current WS'!$B$25:$R$47, 17,0) -> 0.005017832317 | H25: =VLOOKUP('9. Adj Network to Current WS'!$B25, '4. RRR Data'!$B$27:$M$49,11,0) -> 147654537.5 | J25: =VLOOKUP('9. Adj Network to Current WS'!$B25, '4. RRR Data'!$B$27:$M$49,12,0) -> 0 | L25: =IF(F25="", "", IF(D25="kWh", F25*H25, F25*J25)) -> 740905.7101 | N25: =IF(ISERROR(L25/$L$49), "", L25/$L$49) -> 0.3694954812 | P25: =IF(ISERROR('8. Forecast Wholesale'!$P$75*N25), "", '8. Forecast Wholesale'!$P$75*N25) -> 738299.2299 | R25: =IF(D25="","",IF(D25="kWh",IF(H25<>0,P25/H25,),IF(J25<>0,P25/J25,0))) -> 0.005000179759
B26: =IF('3. Rate Classes'!Q25=1,'3. Rate Classes'!C25, 0) -> General Service Less Than 50 kW | D26: =IF(ISERROR(VLOOKUP($B26, '3. Rate Classes'!$C$24:$H$45,6,0)), "", VLOOKUP($B26, '3. Rate Classes'!$C$24:$H$45,6,0)) -> kWh | F26: =VLOOKUP($B26, '10. Adj Conn. to Current WS'!$B$25:$R$47, 17,0) -> 0.004516049085 | H26: =VLOOKUP('9. Adj Network to Current WS'!$B26, '4. RRR Data'!$B$27:$M$49,11,0) -> 51030462.68 | J26: =VLOOKUP('9. Adj Network to Current WS'!$B26, '4. RRR Data'!$B$27:$M$49,12,0) -> 0 | L26: 230456.0743 | N26: 0.1149302494 | P26: =IF(ISERROR('8. Forecast Wholesale'!$P$75*N26), "", '8. Forecast Wholesale'!$P$75*N26) -> 229645.3379 | R26: 0.004500161783
B27: =IF('3. Rate Classes'!Q26=1,'3. Rate Classes'!C26, 0) -> General Service 50 to 999 kW | D27: =IF(ISERROR(VLOOKUP($B27, '3. Rate Classes'!$C$24:$H$45,6,0)), "", VLOOKUP($B27, '3. Rate Classes'!$C$24:$H$45,6,0)) -> kW | F27: =VLOOKUP($B27, '10. Adj Conn. to Current WS'!$B$25:$R$47, 17,0) -> 1.62489955 | H27: =VLOOKUP('9. Adj Network to Current WS'!$B27, '4. RRR Data'!$B$27:$M$49,11,0) -> 76414560 | J27: =VLOOKUP('9. Adj Network to Current WS'!$B27, '4. RRR Data'!$B$27:$M$49,12,0) -> 223584 | L27: 363301.541 | N27: 0.1811813243 | P27: =IF(ISERROR('8. Forecast Wholesale'!$P$75*N27), "", '8. Forecast Wholesale'!$P$75*N27) -> 362023.459 | R27: 1.619183211
B28: =IF('3. Rate Classes'!Q27=1,'3. Rate Classes'!C27, 0) -> General Service 1,000 to 4,999 kW | D28: =IF(ISERROR(VLOOKUP($B28, '3. Rate Classes'!$C$24:$H$45,6,0)), "", VLOOKUP($B28, '3. Rate Classes'!$C$24:$H$45,6,0)) -> kW | F28: =VLOOKUP($B28, '10. Adj Conn. to Current WS'!$B$25:$R$47, 17,0) -> 1.747334659 | H28: =VLOOKUP('9. Adj Network to Current WS'!$B28, '4. RRR Data'!$B$27:$M$49,11,0) -> 99303972 | J28: =VLOOKUP('9. Adj Network to Current WS'!$B28, '4. RRR Data'!$B$27:$M$49,12,0) -> 168548 | L28: 294509.762 | N28: 0.1468743252 | P28: =IF(ISERROR('8. Forecast Wholesale'!$P$75*N28), "", '8. Forecast Wholesale'!$P$75*N28) -> 293473.687 | R28: 1.741187597
B29: =IF('3. Rate Classes'!Q28=1,'3. Rate Classes'!C28, 0) -> Large Use | D29: =IF(ISERROR(VLOOKUP($B29, '3. Rate Classes'!$C$24:$H$45,6,0)), "", VLOOKUP($B29, '3. Rate Classes'!$C$24:$H$45,6,0)) -> kW | F29: =VLOOKUP($B29, '10. Adj Conn. to Current WS'!$B$25:$R$47, 17,0) -> 1.982043765 | H29: =VLOOKUP('9. Adj Network to Current WS'!$B29, '4. RRR Data'!$B$27:$M$49,11,0) -> 95335410 | J29: =VLOOKUP('9. Adj Network to Current WS'!$B29, '4. RRR Data'!$B$27:$M$49,12,0) -> 159576 | L29: 316286.6159 | N29: 0.1577346128 | P29: =IF(ISERROR('8. Forecast Wholesale'!$P$75*N29), "", '8. Forecast Wholesale'!$P$75*N29) -> 315173.9307 | R29: 1.975071005
B30: =IF('3. Rate Classes'!Q29=1,'3. Rate Classes'!C29, 0) -> Unmetered Scattered Load | D30: =IF(ISERROR(VLOOKUP($B30, '3. Rate Classes'!$C$24:$H$45,6,0)), "", VLOOKUP($B30, '3. Rate Classes'!$C$24:$H$45,6,0)) -> kWh | F30: =VLOOKUP($B30, '10. Adj Conn. to Current WS'!$B$25:$R$47, 17,0) -> 0.004516049085 | H30: =VLOOKUP('9. Adj Network to Current WS'!$B30, '4. RRR Data'!$B$27:$M$49,11,0) -> 634129.4747 | J30: =VLOOKUP('9. Adj Network to Current WS'!$B30, '4. RRR Data'!$B$27:$M$49,12,0) -> 0 | L30: 2863.759834 | N30: 0.001428179461 | P30: =IF(ISERROR('8. Forecast Wholesale'!$P$75*N30), "", '8. Forecast Wholesale'!$P$75*N30) -> 2853.685228 | R30: 0.004500161783
B31: =IF('3. Rate Classes'!Q30=1,'3. Rate Classes'!C30, 0) -> Sentinel Lighting | D31: =IF(ISERROR(VLOOKUP($B31, '3. Rate Classes'!$C$24:$H$45,6,0)), "", VLOOKUP($B31, '3. Rate Classes'!$C$24:$H$45,6,0)) -> kW | F31: =VLOOKUP($B31, '10. Adj Conn. to Current WS'!$B$25:$R$47, 17,0) -> 1.254834417 | H31: =VLOOKUP('9. Adj Network to Current WS'!$B31, '4. RRR Data'!$B$27:$M$49,11,0) -> 54410 | J31: =VLOOKUP('9. Adj Network to Current WS'!$B31, '4. RRR Data'!$B$27:$M$49,12,0) -> 18 | L31: 22.5870195 | N31: 1.126432355e-05 | P31: =IF(ISERROR('8. Forecast Wholesale'!$P$75*N31), "", '8. Forecast Wholesale'!$P$75*N31) -> 22.50755916 | R31: 1.250419953
B32: =IF('3. Rate Classes'!Q31=1,'3. Rate Classes'!C31, 0) -> Street Lighting | D32: =IF(ISERROR(VLOOKUP($B32, '3. Rate Classes'!$C$24:$H$45,6,0)), "", VLOOKUP($B32, '3. Rate Classes'!$C$24:$H$45,6,0)) -> kW | F32: =VLOOKUP($B32, '10. Adj Conn. to Current WS'!$B$25:$R$47, 17,0) -> 2.073995542 | H32: =VLOOKUP('9. Adj Network to Current WS'!$B32, '4. RRR Data'!$B$27:$M$49,11,0) -> 4189868 | J32: =VLOOKUP('9. Adj Network to Current WS'!$B32, '4. RRR Data'!$B$27:$M$49,12,0) -> 920 | L32: 1908.075899 | N32: 0.0009515723969 | P32: =IF(ISERROR('8. Forecast Wholesale'!$P$75*N32), "", '8. Forecast Wholesale'!$P$75*N32) -> 1901.363355 | R32: 2.066699299
B33: =IF('3. Rate Classes'!Q32=1,'3. Rate Classes'!C32, 0) -> Embedded Distributor | D33: =IF(ISERROR(VLOOKUP($B33, '3. Rate Classes'!$C$24:$H$45,6,0)), "", VLOOKUP($B33, '3. Rate Classes'!$C$24:$H$45,6,0)) -> kW | F33: =VLOOKUP($B33, '10. Adj Conn. to Current WS'!$B$25:$R$47, 17,0) -> 2.304314046 | H33: =VLOOKUP('9. Adj Network to Current WS'!$B33, '4. RRR Data'!$B$27:$M$49,11,0) -> 17400000 | J33: =VLOOKUP('9. Adj Network to Current WS'!$B33, '4. RRR Data'!$B$27:$M$49,12,0) -> 23837 | L33: 54927.93391 | N33: 0.02739299089 | P33: =IF(ISERROR('8. Forecast Wholesale'!$P$75*N33), "", '8. Forecast Wholesale'!$P$75*N33) -> 54734.69937 | R33: 2.29620755
B34: =IF('3. Rate Classes'!Q33=1,'3. Rate Classes'!C33, 0) -> 0 | D34: =IF(ISERROR(VLOOKUP($B34, '3. Rate Classes'!$C$24:$H$45,6,0)), "", VLOOKUP($B34, '3. Rate Classes'!$C$24:$H$45,6,0)) ->  | F34: =VLOOKUP($B34, '10. Adj Conn. to Current WS'!$B$25:$R$47, 17,0) ->  | H34: =VLOOKUP('9. Adj Network to Current WS'!$B34, '4. RRR Data'!$B$27:$M$49,11,0) -> 0 | J34: =VLOOKUP('9. Adj Network to Current WS'!$B34, '4. RRR Data'!$B$27:$M$49,12,0) -> 0 | P34: =IF(ISERROR('8. Forecast Wholesale'!$P$75*N34), "", '8. Forecast Wholesale'!$P$75*N34) -> 
B35: =IF('3. Rate Classes'!Q34=1,'3. Rate Classes'!C34, 0) -> 0 | D35: =IF(ISERROR(VLOOKUP($B35, '3. Rate Classes'!$C$24:$H$45,6,0)), "", VLOOKUP($B35, '3. Rate Classes'!$C$24:$H$45,6,0)) ->  | F35: =VLOOKUP($B35, '10. Adj Conn. to Current WS'!$B$25:$R$47, 17,0) ->  | H35: =VLOOKUP('9. Adj Network to Current WS'!$B35, '4. RRR Data'!$B$27:$M$49,11,0) -> 0 | J35: =VLOOKUP('9. Adj Network to Current WS'!$B35, '4. RRR Data'!$B$27:$M$49,12,0) -> 0 | P35: =IF(ISERROR('8. Forecast Wholesale'!$P$75*N35), "", '8. Forecast Wholesale'!$P$75*N35) -> 
B36: =IF('3. Rate Classes'!Q35=1,'3. Rate Classes'!C35, 0) -> 0 | D36: =IF(ISERROR(VLOOKUP($B36, '3. Rate Classes'!$C$24:$H$45,6,0)), "", VLOOKUP($B36, '3. Rate Classes'!$C$24:$H$45,6,0)) ->  | F36: =VLOOKUP($B36, '10. Adj Conn. to Current WS'!$B$25:$R$47, 17,0) ->  | H36: =VLOOKUP('9. Adj Network to Current WS'!$B36, '4. RRR Data'!$B$27:$M$49,11,0) -> 0 | J36: =VLOOKUP('9. Adj Network to Current WS'!$B36, '4. RRR Data'!$B$27:$M$49,12,0) -> 0 | P36: =IF(ISERROR('8. Forecast Wholesale'!$P$75*N36), "", '8. Forecast Wholesale'!$P$75*N36) -> 
B37: =IF('3. Rate Classes'!Q36=1,'3. Rate Classes'!C36, 0) -> 0 | D37: =IF(ISERROR(VLOOKUP($B37, '3. Rate Classes'!$C$24:$H$45,6,0)), "", VLOOKUP($B37, '3. Rate Classes'!$C$24:$H$45,6,0)) ->  | F37: =VLOOKUP($B37, '10. Adj Conn. to Current WS'!$B$25:$R$47, 17,0) ->  | H37: =VLOOKUP('9. Adj Network to Current WS'!$B37, '4. RRR Data'!$B$27:$M$49,11,0) -> 0 | J37: =VLOOKUP('9. Adj Network to Current WS'!$B37, '4. RRR Data'!$B$27:$M$49,12,0) -> 0 | P37: =IF(ISERROR('8. Forecast Wholesale'!$P$75*N37), "", '8. Forecast Wholesale'!$P$75*N37) -> 
B38: =IF('3. Rate Classes'!Q37=1,'3. Rate Classes'!C37, 0) -> 0 | D38: =IF(ISERROR(VLOOKUP($B38, '3. Rate Classes'!$C$24:$H$45,6,0)), "", VLOOKUP($B38, '3. Rate Classes'!$C$24:$H$45,6,0)) ->  | F38: =VLOOKUP($B38, '10. Adj Conn. to Current WS'!$B$25:$R$47, 17,0) ->  | H38: =VLOOKUP('9. Adj Network to Current WS'!$B38, '4. RRR Data'!$B$27:$M$49,11,0) -> 0 | J38: =VLOOKUP('9. Adj Network to Current WS'!$B38, '4. RRR Data'!$B$27:$M$49,12,0) -> 0 | P38: =IF(ISERROR('8. Forecast Wholesale'!$P$75*N38), "", '8. Forecast Wholesale'!$P$75*N38) -> 
B39: =IF('3. Rate Classes'!Q38=1,'3. Rate Classes'!C38, 0) -> 0 | D39: =IF(ISERROR(VLOOKUP($B39, '3. Rate Classes'!$C$24:$H$45,6,0)), "", VLOOKUP($B39, '3. Rate Classes'!$C$24:$H$45,6,0)) ->  | F39: =VLOOKUP($B39, '10. Adj Conn. to Current WS'!$B$25:$R$47, 17,0) ->  | H39: =VLOOKUP('9. Adj Network to Current WS'!$B39, '4. RRR Data'!$B$27:$M$49,11,0) -> 0 | J39: =VLOOKUP('9. Adj Network to Current WS'!$B39, '4. RRR Data'!$B$27:$M$49,12,0) -> 0 | P39: =IF(ISERROR('8. Forecast Wholesale'!$P$75*N39), "", '8. Forecast Wholesale'!$P$75*N39) -> 
B40: =IF('3. Rate Classes'!Q39=1,'3. Rate Classes'!C39, 0) -> 0 | D40: =IF(ISERROR(VLOOKUP($B40, '3. Rate Classes'!$C$24:$H$45,6,0)), "", VLOOKUP($B40, '3. Rate Classes'!$C$24:$H$45,6,0)) ->  | F40: =VLOOKUP($B40, '10. Adj Conn. to Current WS'!$B$25:$R$47, 17,0) ->  | H40: =VLOOKUP('9. Adj Network to Current WS'!$B40, '4. RRR Data'!$B$27:$M$49,11,0) -> 0 | J40: =VLOOKUP('9. Adj Network to Current WS'!$B40, '4. RRR Data'!$B$27:$M$49,12,0) -> 0 | P40: =IF(ISERROR('8. Forecast Wholesale'!$P$75*N40), "", '8. Forecast Wholesale'!$P$75*N40) -> 
B41: =IF('3. Rate Classes'!Q40=1,'3. Rate Classes'!C40, 0) -> 0 | D41: =IF(ISERROR(VLOOKUP($B41, '3. Rate Classes'!$C$24:$H$45,6,0)), "", VLOOKUP($B41, '3. Rate Classes'!$C$24:$H$45,6,0)) ->  | F41: =VLOOKUP($B41, '10. Adj Conn. to Current WS'!$B$25:$R$47, 17,0) ->  | H41: =VLOOKUP('9. Adj Network to Current WS'!$B41, '4. RRR Data'!$B$27:$M$49,11,0) -> 0 | J41: =VLOOKUP('9. Adj Network to Current WS'!$B41, '4. RRR Data'!$B$27:$M$49,12,0) -> 0 | P41: =IF(ISERROR('8. Forecast Wholesale'!$P$75*N41), "", '8. Forecast Wholesale'!$P$75*N41) -> 
B42: =IF('3. Rate Classes'!Q41=1,'3. Rate Classes'!C41, 0) -> 0 | D42: =IF(ISERROR(VLOOKUP($B42, '3. Rate Classes'!$C$24:$H$45,6,0)), "", VLOOKUP($B42, '3. Rate Classes'!$C$24:$H$45,6,0)) ->  | F42: =VLOOKUP($B42, '10. Adj Conn. to Current WS'!$B$25:$R$47, 17,0) ->  | H42: =VLOOKUP('9. Adj Network to Current WS'!$B42, '4. RRR Data'!$B$27:$M$49,11,0) -> 0 | J42: =VLOOKUP('9. Adj Network to Current WS'!$B42, '4. RRR Data'!$B$27:$M$49,12,0) -> 0 | P42: =IF(ISERROR('8. Forecast Wholesale'!$P$75*N42), "", '8. Forecast Wholesale'!$P$75*N42) -> 
B43: =IF('3. Rate Classes'!Q42=1,'3. Rate Classes'!C42, 0) -> 0 | D43: =IF(ISERROR(VLOOKUP($B43, '3. Rate Classes'!$C$24:$H$45,6,0)), "", VLOOKUP($B43, '3. Rate Classes'!$C$24:$H$45,6,0)) ->  | F43: =VLOOKUP($B43, '10. Adj Conn. to Current WS'!$B$25:$R$47, 17,0) ->  | H43: =VLOOKUP('9. Adj Network to Current WS'!$B43, '4. RRR Data'!$B$27:$M$49,11,0) -> 0 | J43: =VLOOKUP('9. Adj Network to Current WS'!$B43, '4. RRR Data'!$B$27:$M$49,12,0) -> 0 | P43: =IF(ISERROR('8. Forecast Wholesale'!$P$75*N43), "", '8. Forecast Wholesale'!$P$75*N43) -> 
B44: =IF('3. Rate Classes'!Q43=1,'3. Rate Classes'!C43, 0) -> 0 | D44: =IF(ISERROR(VLOOKUP($B44, '3. Rate Classes'!$C$24:$H$45,6,0)), "", VLOOKUP($B44, '3. Rate Classes'!$C$24:$H$45,6,0)) ->  | F44: =VLOOKUP($B44, '10. Adj Conn. to Current WS'!$B$25:$R$47, 17,0) ->  | H44: =VLOOKUP('9. Adj Network to Current WS'!$B44, '4. RRR Data'!$B$27:$M$49,11,0) -> 0 | J44: =VLOOKUP('9. Adj Network to Current WS'!$B44, '4. RRR Data'!$B$27:$M$49,12,0) -> 0 | P44: =IF(ISERROR('8. Forecast Wholesale'!$P$75*N44), "", '8. Forecast Wholesale'!$P$75*N44) -> 
B45: =IF('3. Rate Classes'!Q44=1,'3. Rate Classes'!C44, 0) -> 0 | D45: =IF(ISERROR(VLOOKUP($B45, '3. Rate Classes'!$C$24:$H$45,6,0)), "", VLOOKUP($B45, '3. Rate Classes'!$C$24:$H$45,6,0)) ->  | F45: =VLOOKUP($B45, '10. Adj Conn. to Current WS'!$B$25:$R$47, 17,0) ->  | H45: =VLOOKUP('9. Adj Network to Current WS'!$B45, '4. RRR Data'!$B$27:$M$49,11,0) -> 0 | J45: =VLOOKUP('9. Adj Network to Current WS'!$B45, '4. RRR Data'!$B$27:$M$49,12,0) -> 0 | P45: =IF(ISERROR('8. Forecast Wholesale'!$P$75*N45), "", '8. Forecast Wholesale'!$P$75*N45) -> 
B46: =IF('3. Rate Classes'!Q45=1,'3. Rate Classes'!C45, 0) -> 0 | D46: =IF(ISERROR(VLOOKUP($B46, '3. Rate Classes'!$C$24:$H$45,6,0)), "", VLOOKUP($B46, '3. Rate Classes'!$C$24:$H$45,6,0)) ->  | F46: =VLOOKUP($B46, '10. Adj Conn. to Current WS'!$B$25:$R$47, 17,0) ->  | H46: =VLOOKUP('9. Adj Network to Current WS'!$B46, '4. RRR Data'!$B$27:$M$49,11,0) -> 0 | J46: =VLOOKUP('9. Adj Network to Current WS'!$B46, '4. RRR Data'!$B$27:$M$49,12,0) -> 0 | P46: =IF(ISERROR('8. Forecast Wholesale'!$P$75*N46), "", '8. Forecast Wholesale'!$P$75*N46) -> 
L49: =SUM(L25:L46) -> 2005182.06

Sheet 13. Final 2013 RTS Rates
B13: For Cost of Service Applicants, please enter the following Proposed RTS rates into your rates model. For IRM applicants, please enter these rates into the 2013 IRM Rate Generator, Sheet 11 "Proposed Rates", column I. Please note that the rate description for the RTSRs has been transfered to Sheet 11, Column A from Sheet 4.
B23: Rate Class | D23: Unit | F23: Proposed RTSR Network | H23: Proposed RTSR Connection
B26: =IF('3. Rate Classes'!Q24=1,'3. Rate Classes'!C24, 0) -> Residential | D26: =IF(ISERROR(VLOOKUP($B26, '3. Rate Classes'!$C$24:$H$45,6,0)), "", VLOOKUP($B26, '3. Rate Classes'!$C$24:$H$45,6,0)) -> kWh | F26: =VLOOKUP($B26, '11. Adj Network to Forecast WS'!$B$25:$R$48,17,0) -> 0.005448972157 | H26: =VLOOKUP($B26, '12. Adj Conn. to Forecast WS'!$B$25:$R$48,17,0) -> 0.005000179759
B27: =IF('3. Rate Classes'!Q25=1,'3. Rate Classes'!C25, 0) -> General Service Less Than 50 kW | D27: =IF(ISERROR(VLOOKUP($B27, '3. Rate Classes'!$C$24:$H$45,6,0)), "", VLOOKUP($B27, '3. Rate Classes'!$C$24:$H$45,6,0)) -> kWh | F27: =VLOOKUP($B27, '11. Adj Network to Forecast WS'!$B$25:$R$48,17,0) -> 0.004987194856 | H27: =VLOOKUP($B27, '12. Adj Conn. to Forecast WS'!$B$25:$R$48,17,0) -> 0.004500161783
B28: =IF('3. Rate Classes'!Q26=1,'3. Rate Classes'!C26, 0) -> General Service 50 to 999 kW | D28: =IF(ISERROR(VLOOKUP($B28, '3. Rate Classes'!$C$24:$H$45,6,0)), "", VLOOKUP($B28, '3. Rate Classes'!$C$24:$H$45,6,0)) -> kW | F28: =VLOOKUP($B28, '11. Adj Network to Forecast WS'!$B$25:$R$48,17,0) -> 2.269635437 | H28: =VLOOKUP($B28, '12. Adj Conn. to Forecast WS'!$B$25:$R$48,17,0) -> 1.619183211
B29: =IF('3. Rate Classes'!Q27=1,'3. Rate Classes'!C27, 0) -> General Service 1,000 to 4,999 kW | D29: =IF(ISERROR(VLOOKUP($B29, '3. Rate Classes'!$C$24:$H$45,6,0)), "", VLOOKUP($B29, '3. Rate Classes'!$C$24:$H$45,6,0)) -> kW | F29: =VLOOKUP($B29, '11. Adj Network to Forecast WS'!$B$25:$R$48,17,0) -> 2.465151946 | H29: =VLOOKUP($B29, '12. Adj Conn. to Forecast WS'!$B$25:$R$48,17,0) -> 1.741187597
B30: =IF('3. Rate Classes'!Q28=1,'3. Rate Classes'!C28, 0) -> Large Use | D30: =IF(ISERROR(VLOOKUP($B30, '3. Rate Classes'!$C$24:$H$45,6,0)), "", VLOOKUP($B30, '3. Rate Classes'!$C$24:$H$45,6,0)) -> kW | F30: =VLOOKUP($B30, '11. Adj Network to Forecast WS'!$B$25:$R$48,17,0) -> 2.732890425 | H30: =VLOOKUP($B30, '12. Adj Conn. to Forecast WS'!$B$25:$R$48,17,0) -> 1.975071005
B31: =IF('3. Rate Classes'!Q29=1,'3. Rate Classes'!C29, 0) -> Unmetered Scattered Load | D31: =IF(ISERROR(VLOOKUP($B31, '3. Rate Classes'!$C$24:$H$45,6,0)), "", VLOOKUP($B31, '3. Rate Classes'!$C$24:$H$45,6,0)) -> kWh | F31: =VLOOKUP($B31, '11. Adj Network to Forecast WS'!$B$25:$R$48,17,0) -> 0.004987194856 | H31: =VLOOKUP($B31, '12. Adj Conn. to Forecast WS'!$B$25:$R$48,17,0) -> 0.004500161783
B32: =IF('3. Rate Classes'!Q30=1,'3. Rate Classes'!C30, 0) -> Sentinel Lighting | D32: =IF(ISERROR(VLOOKUP($B32, '3. Rate Classes'!$C$24:$H$45,6,0)), "", VLOOKUP($B32, '3. Rate Classes'!$C$24:$H$45,6,0)) -> kW | F32: =VLOOKUP($B32, '11. Adj Network to Forecast WS'!$B$25:$R$48,17,0) -> 1.752814281 | H32: =VLOOKUP($B32, '12. Adj Conn. to Forecast WS'!$B$25:$R$48,17,0) -> 1.250419953
B33: =IF('3. Rate Classes'!Q31=1,'3. Rate Classes'!C31, 0) -> Street Lighting | D33: =IF(ISERROR(VLOOKUP($B33, '3. Rate Classes'!$C$24:$H$45,6,0)), "", VLOOKUP($B33, '3. Rate Classes'!$C$24:$H$45,6,0)) -> kW | F33: =VLOOKUP($B33, '11. Adj Network to Forecast WS'!$B$25:$R$48,17,0) -> 1.752814281 | H33: =VLOOKUP($B33, '12. Adj Conn. to Forecast WS'!$B$25:$R$48,17,0) -> 2.066699299
B34: =IF('3. Rate Classes'!Q32=1,'3. Rate Classes'!C32, 0) -> Embedded Distributor | D34: =IF(ISERROR(VLOOKUP($B34, '3. Rate Classes'!$C$24:$H$45,6,0)), "", VLOOKUP($B34, '3. Rate Classes'!$C$24:$H$45,6,0)) -> kW | F34: =VLOOKUP($B34, '11. Adj Network to Forecast WS'!$B$25:$R$48,17,0) -> 3.297921131 | H34: =VLOOKUP($B34, '12. Adj Conn. to Forecast WS'!$B$25:$R$48,17,0) -> 2.29620755
B35: =IF('3. Rate Classes'!Q33=1,'3. Rate Classes'!C33, 0) -> 0 | D35: =IF(ISERROR(VLOOKUP($B35, '3. Rate Classes'!$C$24:$H$45,6,0)), "", VLOOKUP($B35, '3. Rate Classes'!$C$24:$H$45,6,0)) ->  | F35: =VLOOKUP($B35, '11. Adj Network to Forecast WS'!$B$25:$R$48,17,0) ->  | H35: =VLOOKUP($B35, '12. Adj Conn. to Forecast WS'!$B$25:$R$48,17,0) -> 
B36: =IF('3. Rate Classes'!Q34=1,'3. Rate Classes'!C34, 0) -> 0 | D36: =IF(ISERROR(VLOOKUP($B36, '3. Rate Classes'!$C$24:$H$45,6,0)), "", VLOOKUP($B36, '3. Rate Classes'!$C$24:$H$45,6,0)) ->  | F36: =VLOOKUP($B36, '11. Adj Network to Forecast WS'!$B$25:$R$48,17,0) ->  | H36: =VLOOKUP($B36, '12. Adj Conn. to Forecast WS'!$B$25:$R$48,17,0) -> 
B37: =IF('3. Rate Classes'!Q35=1,'3. Rate Classes'!C35, 0) -> 0 | D37: =IF(ISERROR(VLOOKUP($B37, '3. Rate Classes'!$C$24:$H$45,6,0)), "", VLOOKUP($B37, '3. Rate Classes'!$C$24:$H$45,6,0)) ->  | F37: =VLOOKUP($B37, '11. Adj Network to Forecast WS'!$B$25:$R$48,17,0) ->  | H37: =VLOOKUP($B37, '12. Adj Conn. to Forecast WS'!$B$25:$R$48,17,0) -> 
B38: =IF('3. Rate Classes'!Q36=1,'3. Rate Classes'!C36, 0) -> 0 | D38: =IF(ISERROR(VLOOKUP($B38, '3. Rate Classes'!$C$24:$H$45,6,0)), "", VLOOKUP($B38, '3. Rate Classes'!$C$24:$H$45,6,0)) ->  | F38: =VLOOKUP($B38, '11. Adj Network to Forecast WS'!$B$25:$R$48,17,0) ->  | H38: =VLOOKUP($B38, '12. Adj Conn. to Forecast WS'!$B$25:$R$48,17,0) -> 
B39: =IF('3. Rate Classes'!Q37=1,'3. Rate Classes'!C37, 0) -> 0 | D39: =IF(ISERROR(VLOOKUP($B39, '3. Rate Classes'!$C$24:$H$45,6,0)), "", VLOOKUP($B39, '3. Rate Classes'!$C$24:$H$45,6,0)) ->  | F39: =VLOOKUP($B39, '11. Adj Network to Forecast WS'!$B$25:$R$48,17,0) ->  | H39: =VLOOKUP($B39, '12. Adj Conn. to Forecast WS'!$B$25:$R$48,17,0) -> 
B40: =IF('3. Rate Classes'!Q38=1,'3. Rate Classes'!C38, 0) -> 0 | D40: =IF(ISERROR(VLOOKUP($B40, '3. Rate Classes'!$C$24:$H$45,6,0)), "", VLOOKUP($B40, '3. Rate Classes'!$C$24:$H$45,6,0)) ->  | F40: =VLOOKUP($B40, '11. Adj Network to Forecast WS'!$B$25:$R$48,17,0) ->  | H40: =VLOOKUP($B40, '12. Adj Conn. to Forecast WS'!$B$25:$R$48,17,0) -> 
B41: =IF('3. Rate Classes'!Q39=1,'3. Rate Classes'!C39, 0) -> 0 | D41: =IF(ISERROR(VLOOKUP($B41, '3. Rate Classes'!$C$24:$H$45,6,0)), "", VLOOKUP($B41, '3. Rate Classes'!$C$24:$H$45,6,0)) ->  | F41: =VLOOKUP($B41, '11. Adj Network to Forecast WS'!$B$25:$R$48,17,0) ->  | H41: =VLOOKUP($B41, '12. Adj Conn. to Forecast WS'!$B$25:$R$48,17,0) -> 
B42: =IF('3. Rate Classes'!Q40=1,'3. Rate Classes'!C40, 0) -> 0 | D42: =IF(ISERROR(VLOOKUP($B42, '3. Rate Classes'!$C$24:$H$45,6,0)), "", VLOOKUP($B42, '3. Rate Classes'!$C$24:$H$45,6,0)) ->  | F42: =VLOOKUP($B42, '11. Adj Network to Forecast WS'!$B$25:$R$48,17,0) ->  | H42: =VLOOKUP($B42, '12. Adj Conn. to Forecast WS'!$B$25:$R$48,17,0) -> 
B43: =IF('3. Rate Classes'!Q41=1,'3. Rate Classes'!C41, 0) -> 0 | D43: =IF(ISERROR(VLOOKUP($B43, '3. Rate Classes'!$C$24:$H$45,6,0)), "", VLOOKUP($B43, '3. Rate Classes'!$C$24:$H$45,6,0)) ->  | F43: =VLOOKUP($B43, '11. Adj Network to Forecast WS'!$B$25:$R$48,17,0) ->  | H43: =VLOOKUP($B43, '12. Adj Conn. to Forecast WS'!$B$25:$R$48,17,0) -> 
B44: =IF('3. Rate Classes'!Q42=1,'3. Rate Classes'!C42, 0) -> 0 | D44: =IF(ISERROR(VLOOKUP($B44, '3. Rate Classes'!$C$24:$H$45,6,0)), "", VLOOKUP($B44, '3. Rate Classes'!$C$24:$H$45,6,0)) ->  | F44: =VLOOKUP($B44, '11. Adj Network to Forecast WS'!$B$25:$R$48,17,0) ->  | H44: =VLOOKUP($B44, '12. Adj Conn. to Forecast WS'!$B$25:$R$48,17,0) -> 
B45: =IF('3. Rate Classes'!Q43=1,'3. Rate Classes'!C43, 0) -> 0 | D45: =IF(ISERROR(VLOOKUP($B45, '3. Rate Classes'!$C$24:$H$45,6,0)), "", VLOOKUP($B45, '3. Rate Classes'!$C$24:$H$45,6,0)) ->  | F45: =VLOOKUP($B45, '11. Adj Network to Forecast WS'!$B$25:$R$48,17,0) ->  | H45: =VLOOKUP($B45, '12. Adj Conn. to Forecast WS'!$B$25:$R$48,17,0) -> 
B46: =IF('3. Rate Classes'!Q44=1,'3. Rate Classes'!C44, 0) -> 0 | D46: =IF(ISERROR(VLOOKUP($B46, '3. Rate Classes'!$C$24:$H$45,6,0)), "", VLOOKUP($B46, '3. Rate Classes'!$C$24:$H$45,6,0)) ->  | F46: =VLOOKUP($B46, '11. Adj Network to Forecast WS'!$B$25:$R$48,17,0) ->  | H46: =VLOOKUP($B46, '12. Adj Conn. to Forecast WS'!$B$25:$R$48,17,0) -> 
B47: =IF('3. Rate Classes'!Q45=1,'3. Rate Classes'!C45, 0) -> 0 | D47: =IF(ISERROR(VLOOKUP($B47, '3. Rate Classes'!$C$24:$H$45,6,0)), "", VLOOKUP($B47, '3. Rate Classes'!$C$24:$H$45,6,0)) ->  | F47: =VLOOKUP($B47, '11. Adj Network to Forecast WS'!$B$25:$R$48,17,0) ->  | H47: =VLOOKUP($B47, '12. Adj Conn. to Forecast WS'!$B$25:$R$48,17,0) -> 

Sheet hidden1 (hidden)
A1: =IF('3. Rate Classes'!Q24=1, '3. Rate Classes'!C24, "") -> Residential | B1: 1
A2: =IF('3. Rate Classes'!Q25=1, '3. Rate Classes'!C25, "") -> General Service Less Than 50 kW | B2: 2
A3: =IF('3. Rate Classes'!Q26=1, '3. Rate Classes'!C26, "") -> General Service 50 to 999 kW | B3: 3
A4: =IF('3. Rate Classes'!Q27=1, '3. Rate Classes'!C27, "") -> General Service 1,000 to 4,999 kW | B4: 4
A5: =IF('3. Rate Classes'!Q28=1, '3. Rate Classes'!C28, "") -> Large Use | B5: 5
A6: =IF('3. Rate Classes'!Q29=1, '3. Rate Classes'!C29, "") -> Unmetered Scattered Load | B6: 6
A7: =IF('3. Rate Classes'!Q30=1, '3. Rate Classes'!C30, "") -> Sentinel Lighting | B7: 7
A8: =IF('3. Rate Classes'!Q31=1, '3. Rate Classes'!C31, "") -> Street Lighting | B8: 8
A9: =IF('3. Rate Classes'!Q32=1, '3. Rate Classes'!C32, "") -> Embedded Distributor | B9: 9
A10: =IF('3. Rate Classes'!Q33=1, '3. Rate Classes'!C33, "") ->  | B10: 10
A11: =IF('3. Rate Classes'!Q34=1, '3. Rate Classes'!C34, "") ->  | B11: 11
A12: =IF('3. Rate Classes'!Q35=1, '3. Rate Classes'!C35, "") ->  | B12: 12
A13: =IF('3. Rate Classes'!Q36=1, '3. Rate Classes'!C36, "") ->  | B13: 13
A14: =IF('3. Rate Classes'!Q37=1, '3. Rate Classes'!C37, "") ->  | B14: 14
A15: =IF('3. Rate Classes'!Q38=1, '3. Rate Classes'!C38, "") ->  | B15: 15
A16: =IF('3. Rate Classes'!Q39=1, '3. Rate Classes'!C39, "") ->  | B16: 16
A17: =IF('3. Rate Classes'!Q40=1, '3. Rate Classes'!C40, "") ->  | B17: 17
A18: =IF('3. Rate Classes'!Q41=1, '3. Rate Classes'!C41, "") ->  | B18: 18
A19: =IF('3. Rate Classes'!Q42=1, '3. Rate Classes'!C42, "") ->  | B19: 19
A20: =IF('3. Rate Classes'!Q43=1, '3. Rate Classes'!C43, "") ->  | B20: 20
A21: =IF('3. Rate Classes'!Q44=1, '3. Rate Classes'!C44, "") ->  | B21: 21
A22: =IF('3. Rate Classes'!Q45=1, '3. Rate Classes'!C45, "") ->  | B22: 22
